Transaction Reference,Supplier Name,Line Value,Department,Category,Transaction Date,Year/Period,SME,Costs split between Mid Suffolk and Babergh District Councils Y/N,% of transaction apportioned to Babergh District Council
351543,ACADEMY BUILDING CONTRACTS LTD,493.18,Building Services,Repairs,01-Apr-21,2122/01,SME,N,
351545,ACADEMY BUILDING CONTRACTS LTD,"1,447.56",Building Services,Repairs,01-Apr-21,2122/01,SME,N,
351546,ACADEMY BUILDING CONTRACTS LTD,349.54,Building Services,Repairs,01-Apr-21,2122/01,SME,N,
351680,AE WHITE SURFACING,"1,000.00",EV Charge Points LA's,"Equipment, Tools & Materials",08-Apr-21,2122/01,SME,N,
351686,AE WHITE SURFACING,"6,987.00",Council House Adaptions,Improvements,13-Apr-21,2122/01,SME,N,
351687,AE WHITE SURFACING,400,C Parks General,Repairs,13-Apr-21,2122/01,SME,N,
351842,AE WHITE SURFACING,800,C Parks General,Repairs,21-Apr-21,2122/01,SME,N,
351481,ALLPAY LTD,272.17,Financial Servs,Contracted Services,31-Mar-21,2122/01,LGE,N,
351482,ALLPAY LTD,318.05,Financial Servs,Contracted Services,31-Mar-21,2122/01,LGE,N,
351439,ARAN SERVICES LTD,"8,903.90",Insulation Imps,Improvements,26-Mar-21,2122/01,SME,N,
351911,ARLINGCLOSE LTD,"1,950.00",Treasury Management,Contracted Services,27-Apr-21,2122/01,SME,N,
351794,BINDER LTD,270,Sewage Treatment Works,Contracted Services,13-Apr-21,2122/01,SME,N,
351794,BINDER LTD,6.5,Sewage Treatment Works,Repairs,13-Apr-21,2122/01,SME,N,
351794,BINDER LTD,52.5,Sewage Treatment Works,Contracted Services,13-Apr-21,2122/01,SME,N,
351819,BINDER LTD,353.24,Sewage Treatment Works,Contracted Services,15-Apr-21,2122/01,SME,N,
351463,BLUE FLAME (COLCHESTER) LTD,"26,081.79",Planned Maint - Heating,Property Servicing,31-Mar-21,2122/01,SME,N,
421556,BLUE FLAME (COLCHESTER) LTD,"2,226.41",Planned Maint - Heating,Property Servicing,07-Apr-21,2122/01,SME,N,
421709,BLUE FLAME (COLCHESTER) LTD,"3,200.79",Planned Maint - Heating,Property Servicing,14-Apr-21,2122/01,SME,N,
421709,BLUE FLAME (COLCHESTER) LTD,705.64,PV Panels,Repairs,14-Apr-21,2122/01,SME,N,
421714,BLUE FLAME (COLCHESTER) LTD,"7,265.38",Planned Maint - Heating,Property Servicing,21-Apr-21,2122/01,SME,N,
421714,BLUE FLAME (COLCHESTER) LTD,"5,105.00",Central Heating,Improvements,21-Apr-21,2122/01,SME,N,
421714,BLUE FLAME (COLCHESTER) LTD,"3,097.60",PV Panels,Repairs,21-Apr-21,2122/01,SME,N,
421723,BLUE FLAME (COLCHESTER) LTD,"8,950.75",Planned Maint - Heating,Property Servicing,29-Apr-21,2122/01,SME,N,
421723,BLUE FLAME (COLCHESTER) LTD,296.82,Smoke Alarms (Bbgh Standard),Improvements,29-Apr-21,2122/01,SME,N,
421723,BLUE FLAME (COLCHESTER) LTD,"4,551.36",Central Heating,Improvements,29-Apr-21,2122/01,SME,N,
421723,BLUE FLAME (COLCHESTER) LTD,"2,678.13",PV Panels,Contracted Services,29-Apr-21,2122/01,SME,N,
421723,BLUE FLAME (COLCHESTER) LTD,50,Housing Rechargeable Works,Repairs,29-Apr-21,2122/01,SME,N,
351671,BUTTON & TURNER LTD,337.45,Open Spaces,Plant & Vehicle - Other costs,19-Mar-21,2122/01,SME,N,
351672,BUTTON & TURNER LTD,"1,082.11",Open Spaces,Plant & Vehicle - Other costs,15-Mar-21,2122/01,SME,N,
351673,BUTTON & TURNER LTD,"1,079.53",Open Spaces,Plant & Vehicle - Other costs,17-Mar-21,2122/01,SME,N,
351567,AQUASAMPLERS,525,Water Sampling,Sampling & Analysis,31-Mar-21,2122/01,SME,N,
351663,AQUASAMPLERS,525,Water Sampling,Sampling & Analysis,31-Mar-21,2122/01,SME,N,
351455,CHIPSIDE LTD,666.66,C Parks General,Contracted Services,31-Aug-20,2122/01,SME,N,
351457,CHIPSIDE LTD,503.5,C Parks General,Contracted Services,10-Nov-20,2122/01,SME,N,
351570,CHIPSIDE LTD,435,C Parks General,Contracted Services,31-Mar-21,2122/01,SME,N,
351967,CHIPSIDE LTD,"1,440.00",C Parks General,Contracted Services,30-Sep-20,2122/01,SME,Y,50%
351425,CLARKES OF WALSHAM LTD,576.68,Building Services,Repairs,26-Mar-21,2122/01,SME,N,
351511,CLC CONTRACTORS LTD,"12,525.75",Planned Maint - Ext Painting,Major Contracts,31-Mar-21,2122/01,SME,N,
351524,D W ADAMS LTD,389,Disabled Facilities (Revenue),Repairs,07-Apr-21,2122/01,SME,N,
351833,D W ADAMS LTD,"3,609.00",Building Services,Repairs,21-Apr-21,2122/01,SME,N,
351878,DISTRICT COUNCILS' NETWORK,"1,550.00",Management Team,Subscriptions,21-Apr-21,2122/01,LGE,N,
351559,DMA HEALTH AND SAFETY LTD,260,Roofing,Prof & Consultancy Fees,15-Mar-21,2122/01,SME,N,
351465,EAST SUFFOLK INTERNAL DRAINAGE BOARD,"40,548.00",Land Drainage,Misc Supplies & Services Costs,06-Apr-21,2122/01,SME,N,
351604,EGBERT H.TAYLOR & CO.LTD.,625,Jnt Waste Contract,"Equipment, Tools & Materials",09-Apr-21,2122/01,SME,Y,50%
351852,EGBERT H.TAYLOR & CO.LTD.,"18,960.00",Bins,Bins,21-Apr-21,2122/01,SME,Y,50%
351694,ENGLISH SECURITY,286.5,Responsive maintenance,Repairs,30-Mar-21,2122/01,SME,N,
351744,ENGLISH SECURITY,"3,181.33",Sheltered Accommodation,Fire Prevention,31-Mar-21,2122/01,SME,N,
351744,ENGLISH SECURITY,247.5,Temporary Accommodation,Fire Prevention,31-Mar-21,2122/01,SME,N,
351659,ENVIRONMENT AGENCY,"1,109.00",Recycling Centre,Misc Supplies & Services Costs,01-Apr-21,2122/01,LGE,N,
351660,ENVIRONMENT AGENCY,"1,230.25",Creeting Rd Depot,Misc Supplies & Services Costs,01-Apr-21,2122/01,LGE,Y,50%
351881,FELGAINS CARE CENTRE,"9,428.00",Council House Adaptions,Improvements,22-Apr-21,2122/01,SME,N,
351537,FELLBRIDGE BUILDING SERVICES,639.57,Building Services,Repairs,01-Apr-21,2122/01,SME,N,
351538,FELLBRIDGE BUILDING SERVICES,799.72,Building Services,Repairs,01-Apr-21,2122/01,SME,N,
351540,FELLBRIDGE BUILDING SERVICES,"10,195.68",Building Services,Repairs,01-Apr-21,2122/01,SME,N,
351541,FELLBRIDGE BUILDING SERVICES,"3,558.52",Building Services,Repairs,01-Apr-21,2122/01,SME,N,
351542,FELLBRIDGE BUILDING SERVICES,"3,857.43",Building Services,Repairs,01-Apr-21,2122/01,SME,N,
351564,FELLBRIDGE BUILDING SERVICES,"11,456.82",Building Services,Repairs,08-Apr-21,2122/01,SME,N,
351565,FELLBRIDGE BUILDING SERVICES,"13,409.48",Building Services,Repairs,08-Apr-21,2122/01,SME,N,
351779,FELLBRIDGE BUILDING SERVICES,448.31,Building Services,Repairs,19-Apr-21,2122/01,SME,N,
351780,FELLBRIDGE BUILDING SERVICES,524.02,Building Services,Repairs,19-Apr-21,2122/01,SME,N,
351787,FELLBRIDGE BUILDING SERVICES,448.31,Building Services,Repairs,19-Apr-21,2122/01,SME,N,
351858,FELLBRIDGE BUILDING SERVICES,"3,609.29",Building Services,Repairs,22-Apr-21,2122/01,SME,N,
351859,FELLBRIDGE BUILDING SERVICES,"1,707.13",Building Services,Repairs,22-Apr-21,2122/01,SME,N,
351860,FELLBRIDGE BUILDING SERVICES,"3,143.02",Building Services,Repairs,22-Apr-21,2122/01,SME,N,
351828,G4S CASH SOLUTIONS LTD,"1,674.40",Financial Servs,Contracted Services,02-Feb-21,2122/01,LGE,N,
351829,G4S CASH SOLUTIONS LTD,514.8,Financial Servs,Contracted Services,02-Feb-21,2122/01,LGE,N,
351657,JMP SERVICES LTD,860,Open Spaces,Contracted Services,08-Apr-21,2122/01,SME,N,
351657,JMP SERVICES LTD,350,Open Spaces,Contracted Services,08-Apr-21,2122/01,SME,N,
351619,KINGSLEY HOUSE HOTEL,600,Homelessness Private Sector,B&B Costs,08-Apr-21,2122/01,SME,N,
351620,KINGSLEY HOUSE HOTEL,550,Homelessness Private Sector,B&B Costs,11-Apr-21,2122/01,SME,N,
351621,KINGSLEY HOUSE HOTEL,528,Homelessness Private Sector,B&B Costs,11-Apr-21,2122/01,SME,N,
351623,KINGSLEY HOUSE HOTEL,775,Homelessness Private Sector,B&B Costs,11-Apr-21,2122/01,SME,N,
351624,KINGSLEY HOUSE HOTEL,700,Homelessness Private Sector,B&B Costs,11-Apr-21,2122/01,SME,N,
351569,M & H CIVIL ENGINEERING LTD,439.7,Building Services,Repairs,08-Apr-21,2122/01,SME,N,
351841,M & H CIVIL ENGINEERING LTD,463,Building Services,Repairs,15-Apr-20,2122/01,SME,N,
351866,M & H CIVIL ENGINEERING LTD,641.5,Building Services,Repairs,16-Apr-21,2122/01,SME,N,
351551,MARTIN BROKERS ( UK ) PLC,"1,260.27",Treasury Management,Contracted Services,31-Mar-21,2122/01,LGE,N,
351552,MARTIN BROKERS ( UK ) PLC,"1,764.38",Treasury Management,Prof & Consultancy Fees,31-Mar-21,2122/01,LGE,N,
351656,MATERIAL CHANGE COMPOSTING LTD,583.4,Open Spaces,Waste Disposal,31-Mar-21,2122/01,LGE,N,
351234,MB TREES (EAST ANGLIA) LTD,720,Tenancy Services,Tree felling/maintenance,20-Mar-21,2122/01,SME,N,
351430,MB TREES (EAST ANGLIA) LTD,925,Tenancy Services,Tree felling/maintenance,30-Mar-21,2122/01,SME,N,
351462,MB TREES (EAST ANGLIA) LTD,500,Amenity Areas,Tree felling/maintenance,30-Mar-21,2122/01,SME,N,
351789,MB TREES (EAST ANGLIA) LTD,"1,280.00",Public Tree Programme,Tree felling/maintenance,19-Apr-21,2122/01,SME,N,
351926,MB TREES (EAST ANGLIA) LTD,280,Public Tree Programme,Tree felling/maintenance,27-Apr-21,2122/01,SME,N,
351940,MB TREES (EAST ANGLIA) LTD,"1,125.00",Tenancy Services,Grounds & Site Maintenance,28-Apr-21,2122/01,SME,N,
351768,MERCURY BUILDING SERVICES LTD,360,Sheltered Accommodation,Repairs,16-Apr-21,2122/01,SME,N,
421576,NEEDHAM MARKET TOWN COUNCIL,"8,873.60",CIL,Contributions to other Bodies,07-Apr-21,2122/01,SME,N,
351839,NORTHGATE PUBLIC SERVICES (UK) LTD,965.24,ICT,Software Licences (Corporate) ,20-Apr-21,2122/01,LGE,Y,50%
351840,NORTHGATE PUBLIC SERVICES (UK) LTD,"14,465.98",ICT,Software Licences (Corporate) ,20-Apr-21,2122/01,LGE,Y,50%
351712,PLASUFIX LTD,"3,283.48",Roofing,Major Contracts,31-Mar-21,2122/01,SME,N,
351460,REID PLUMBING & HEATING CONTRACTORS LTD,"17,367.74",Central Heating,Major Contracts,06-Apr-21,2122/01,SME,N,
351603,REID PLUMBING & HEATING CONTRACTORS LTD,"8,643.52",Central Heating,Major Contracts,05-Apr-21,2122/01,SME,N,
351760,REID PLUMBING & HEATING CONTRACTORS LTD,"4,241.87",Central Heating,Major Contracts,14-Apr-21,2122/01,SME,N,
351838,REID PLUMBING & HEATING CONTRACTORS LTD,"13,387.04",Central Heating,Major Contracts,21-Apr-21,2122/01,SME,N,
351517,RIGBY TAYLOR LTD,748,Open Spaces,"Equipment, Tools & Materials",31-Mar-21,2122/01,SME,N,
351473,S SACKER (CLAYDON) LTD,261.32,Building Services,Waste Disposal,29-Mar-21,2122/01,SME,Y,50%
351758,S SACKER (CLAYDON) LTD,274.39,Building Services,Waste Disposal,06-Apr-21,2122/01,SME,Y,50%
351759,S SACKER (CLAYDON) LTD,494.37,Building Services,Waste Disposal,07-Apr-21,2122/01,SME,Y,50%
351845,S SACKER (CLAYDON) LTD,356.57,Building Services,Waste Disposal,20-Apr-21,2122/01,SME,Y,50%
351518,SEAGER HOME SOLUTIONS,"3,898.11",Council House Adaptions,Improvements,29-Mar-21,2122/01,SME,N,
351727,SEAGER HOME SOLUTIONS,"8,643.13",Building Services,Repairs,15-Apr-21,2122/01,SME,N,
351728,SEAGER HOME SOLUTIONS,"2,075.42",Building Services,Repairs,15-Apr-21,2122/01,SME,N,
351729,SEAGER HOME SOLUTIONS,"4,356.80",Building Services,Repairs,15-Apr-21,2122/01,SME,N,
351816,SEAGER HOME SOLUTIONS,"7,124.81",Building Services,Repairs,15-Apr-21,2122/01,SME,N,
351726,SUDBURY OFFICE SUPPLIES,691.2,General Elections,Stationery,13-Apr-21,2122/01,SME,Y,40%
351534,SUREFIX,583.33,Building Services,Repairs,22-Mar-21,2122/01,SME,N,
351719,SWIFT INDUSTRIAL SUPPLIES LTD,293,Jnt Waste Contract,"Equipment, Tools & Materials",15-Apr-21,2122/01,SME,Y,50%
351453,TANKCHANGE LTD,345,Responsive maintenance,Repairs,31-Mar-21,2122/01,SME,N,
351525,THOMPSON COOPER LTD,708.05,Street & Major Road Cleansing,Bins,06-Apr-21,2122/01,SME,N,
351811,TOMLINSON GROUNDCARE,386.57,Open Spaces,"Equipment, Tools & Materials",20-Apr-21,2122/01,SME,N,
351466,WAVENEY LOWER YARE & LOTHINGLAND ID B,"16,106.58",Land Drainage,Misc Supplies & Services Costs,06-Apr-21,2122/01,SME,N,
351514,WINDIMAN LTD,880.35,Building Services,Repairs,31-Mar-21,2122/01,SME,N,
351870,WINDIMAN LTD,735,Building Services,Repairs,22-Apr-21,2122/01,SME,N,
351874,WINDIMAN LTD,735,Building Services,Repairs,22-Apr-21,2122/01,SME,N,
351629,WORKWEAR (EAST ANGLIA) LTD,"5,858.00",Business Cont/Emergency Plan,Protective clothing,01-Apr-21,2122/01,SME,Y,50%
351666,WORKWEAR (EAST ANGLIA) LTD,82.96,Open Spaces,Protective clothing,08-Apr-21,2122/01,SME,N,
351666,WORKWEAR (EAST ANGLIA) LTD,233.32,Street & Major Road Cleansing,Protective clothing,08-Apr-21,2122/01,SME,N,
351395,ARCHANT COMMUNITY MEDIA LTD,"1,050.60",Devt Management - Apps,Advertising&mkting (non-staff),27-Mar-21,2122/01,LGE,N,
351477,ARCHANT COMMUNITY MEDIA LTD,"1,155.66",Devt Management - Apps,Advertising&mkting (non-staff),31-Mar-21,2122/01,LGE,N,
351634,ARCHANT COMMUNITY MEDIA LTD,315.18,Devt Management - Apps,Advertising&mkting (non-staff),10-Apr-21,2122/01,LGE,N,
351820,ARCHANT COMMUNITY MEDIA LTD,"1,733.49",Devt Management - Apps,Advertising&mkting (non-staff),17-Apr-21,2122/01,LGE,N,
351907,ARCHANT COMMUNITY MEDIA LTD,"1,155.66",Devt Management - Apps,Advertising&mkting (non-staff),24-Apr-21,2122/01,LGE,N,
351913,ARCHANT COMMUNITY MEDIA LTD,"1,640.57",Devt Policy & Local Plans,Advertising&mkting (non-staff),26-Apr-21,2122/01,LGE,Y,50%
351914,ARCHANT COMMUNITY MEDIA LTD,807.99,Devt Policy & Local Plans,Advertising&mkting (non-staff),26-Apr-21,2122/01,LGE,Y,50%
351658,SPORTS & LEISURE MANAGEMENT LTD,"12,594.00",Leisure Contract,Contributions to other Bodies,13-Apr-21,2122/01,LGE,N,
351969,SPORTS & LEISURE MANAGEMENT LTD,"192,594.00",Leisure Contract,Contributions to other Bodies,29-Apr-21,2122/01,LGE,N,
351643,ESSEX COUNTY COUNCIL,"6,013.00",Devt Management - Apps,Ecology Consultancy,25-Mar-21,2122/01,LGE,N,
351653,ESSEX COUNTY COUNCIL,"5,000.00",Management Team,Subscriptions,31-Mar-21,2122/01,LGE,N,
351690,ESSEX COUNTY COUNCIL,"6,498.00",Devt Management - Apps,Ecology Consultancy,24-Mar-21,2122/01,LGE,N,
351632,IPSWICH BOROUGH COUNCIL,"1,766.49",Central Printing,Commercial Printing,09-Apr-21,2122/01,LGE,Y,50%
351688,TRAVIS PERKINS TRADING CO LTD,"146,670.04",Building Services,"Equipment, Tools & Materials",01-Apr-21,2122/01,LGE,Y,49.50%
351761,TRAVIS PERKINS TRADING CO LTD,335,Building Services,"Equipment, Tools & Materials",14-Apr-21,2122/01,LGE,Y,50%
351805,TRAVIS PERKINS TRADING CO LTD,319.49,Building Services,"Equipment, Tools & Materials",16-Apr-21,2122/01,LGE,Y,50%
351807,TRAVIS PERKINS TRADING CO LTD,473.2,Building Services,"Equipment, Tools & Materials",16-Apr-21,2122/01,LGE,Y,50%
351808,TRAVIS PERKINS TRADING CO LTD,473.2,Building Services,"Equipment, Tools & Materials",16-Apr-21,2122/01,LGE,Y,50%
351886,TRAVIS PERKINS TRADING CO LTD,473.2,Building Services,"Equipment, Tools & Materials",21-Apr-21,2122/01,LGE,Y,50%
421717,EDF ENERGY,307.88,C Parks General,Electricity,08-Apr-21,2122/01,LGE,N,
421717,EDF ENERGY,543.67,Creeting Rd Depot,Electricity,08-Apr-21,2122/01,LGE,Y,50%
421717,EDF ENERGY,"1,141.40",General/Supervision & Mgmt,Electricity,08-Apr-21,2122/01,LGE,N,
421717,EDF ENERGY,177.17,Headquarters General,Electricity,08-Apr-21,2122/01,LGE,N,
421717,EDF ENERGY,124.89,Open Spaces,Electricity,08-Apr-21,2122/01,LGE,N,
421717,EDF ENERGY,458.76,Other HRA Temp Accommodation,Electricity,08-Apr-21,2122/01,LGE,N,
421717,EDF ENERGY,163.45,Public Conveniences,Electricity,08-Apr-21,2122/01,LGE,N,
421717,EDF ENERGY,20.93,Pure Gym & Adjacent Building,Electricity,08-Apr-21,2122/01,LGE,N,
421717,EDF ENERGY,2.12,Recycling Centre,Electricity,08-Apr-21,2122/01,LGE,N,
421717,EDF ENERGY,316.88,Sewage Treatment Works,Electricity,08-Apr-21,2122/01,LGE,N,
421717,EDF ENERGY,"-3,827.83",Sheltered Accommodation,Electricity,08-Apr-21,2122/01,LGE,N,
421717,EDF ENERGY,195.01,Tacon Close Eye TDP,Electricity,08-Apr-21,2122/01,LGE,Y,50%
421717,EDF ENERGY,493.53,Temporary Accommodation,Electricity,08-Apr-21,2122/01,LGE,N,
421717,EDF ENERGY,5.23,Tenancy Services,Electricity,08-Apr-21,2122/01,LGE,N,
421717,EDF ENERGY,"1,689.60",Tenancy Services,Electricity,08-Apr-21,2122/01,LGE,N,
351566,SOUTHERN ELECTRIC PLC,"10,131.50",Leisure Contract,Electricity,19-Mar-21,2122/01,LGE,N,
421710,GPC BARCLAYS,"4,352.34",Current Assets,Barclaycard Control,14-Apr-21,2122/01,LGE,Y,24%
421553,ALLSTAR BUSINESS SOLUTIONS LTD,"7,850.90",Building Services,Plant & Vehicle Fuel,31-Mar-21,2122/01,SME,Y,50%
421553,ALLSTAR BUSINESS SOLUTIONS LTD,79.2,Housing Options,Plant & Vehicle Fuel,31-Mar-21,2122/01,SME,Y,50%
421720,COMPUTERSHARE ,"1,181.00",Current Assets,ChildCare Vouchers-Control,27-Apr-21,2122/01,LGE,N,
421557,BACTON PARISH COUNCIL,"6,057.72",CIL,Contributions to other Bodies,07-Apr-21,2122/01,SME,N,
421558,BARKING PARISH COUNCIL,"3,219.81",CIL,Contributions to other Bodies,07-Apr-21,2122/01,SME,N,
421559,BEDFIELD PARISH COUNCIL,"6,029.38",CIL,Contributions to other Bodies,07-Apr-21,2122/01,SME,N,
421560,BOTESDALE PARISH COUNCIL,"12,841.12",CIL,Contributions to other Bodies,07-Apr-21,2122/01,SME,N,
421561,BRAMFORD PARISH COUNCIL,"8,467.83",CIL,Contributions to other Bodies,07-Apr-21,2122/01,SME,N,
421562,BROME & OAKLEY PARISH COUNCIL,"9,109.12",CIL,Contributions to other Bodies,07-Apr-21,2122/01,SME,N,
421563,BUXHALL PARISH COUNCIL,"2,893.57",CIL,Contributions to other Bodies,07-Apr-21,2122/01,SME,N,
421564,CLAYDON & WHITTON PARISH COUNCIL,"3,555.77",CIL,Contributions to other Bodies,07-Apr-21,2122/01,SME,N,
421565,COMBS PARISH COUNCIL,"10,875.62",CIL,Contributions to other Bodies,07-Apr-21,2122/01,SME,N,
421566,COTTON PARISH COUNCIL,"4,296.19",CIL,Contributions to other Bodies,07-Apr-21,2122/01,SME,N,
421567,CREETING ST MARY PARISH COUNCIL,"7,240.69",CIL,Contributions to other Bodies,07-Apr-21,2122/01,SME,N,
351320,DEBENHAM PARISH COUNCIL,300,Grants & Contrbns,Contributions & Donations,25-Mar-21,2122/01,SME,N,
421568,DEBENHAM PARISH COUNCIL,"3,189.38",CIL,Contributions to other Bodies,07-Apr-21,2122/01,SME,N,
421569,ELMSWELL PARISH COUNCIL,"37,014.22",CIL,Contributions to other Bodies,07-Apr-21,2122/01,SME,N,
421570,GISLINGHAM PARISH COUNCIL,"4,538.23",CIL,Contributions to other Bodies,07-Apr-21,2122/01,SME,N,
421571,GREAT BRICETT PARISH COUNCIL,"13,418.84",CIL,Contributions to other Bodies,07-Apr-21,2122/01,SME,N,
421572,HAUGHLEY PARISH COUNCIL,"90,562.20",CIL,Contributions to other Bodies,07-Apr-21,2122/01,SME,N,
351557,HOME -START MID SUFFOLK,"38,132.61",Wellbeing CCG Funding,Contributions & Donations,07-Apr-21,2122/01,SME,Y,50%
421573,LAXFIELD PARISH COUNCIL,"13,298.72",CIL,Contributions to other Bodies,07-Apr-21,2122/01,SME,N,
421574,MELLIS PARISH COUNCIL,"5,139.14",CIL,Contributions to other Bodies,07-Apr-21,2122/01,SME,N,
421575,MENDHAM PARISH COUNCIL,"3,929.99",CIL,Contributions to other Bodies,07-Apr-21,2122/01,SME,N,
421577,NORTON PARISH COUNCIL,"36,327.76",CIL,Contributions to other Bodies,07-Apr-21,2122/01,SME,N,
421578,OCCOLD PARISH COUNCIL,"3,528.82",CIL,Contributions to other Bodies,07-Apr-21,2122/01,SME,N,
421579,OFFTON AND WILLISHAM PARISH COUNCIL,"3,799.24",CIL,Contributions to other Bodies,07-Apr-21,2122/01,SME,N,
421580,OLD NEWTON WITH DAGWORTH AND GIPPING PAR,"6,618.38",CIL,Contributions to other Bodies,07-Apr-21,2122/01,SME,N,
421581,PALGRAVE PARISH COUNCIL,"11,092.87",CIL,Contributions to other Bodies,07-Apr-21,2122/01,SME,N,
421582,RATTLESDEN PARISH COUNCIL,"26,895.66",CIL,Contributions to other Bodies,07-Apr-21,2122/01,SME,N,
421583,RICKINGHALL INFERIOR AND RICKINGHALL SUP,"7,858.58",CIL,Contributions to other Bodies,07-Apr-21,2122/01,SME,N,
421584,SOMERSHAM PARISH COUNCIL,"14,785.13",CIL,Contributions to other Bodies,07-Apr-21,2122/01,SME,N,
421585,STOWUPLAND PARISH COUNCIL,"80,511.78",CIL,Contributions to other Bodies,07-Apr-21,2122/01,SME,N,
421586,SYLEHAM PARISH COUNCIL,869.6,CIL,Contributions to other Bodies,07-Apr-21,2122/01,SME,N,
421587,THORNDON PARISH COUNCIL,295.52,CIL,Contributions to other Bodies,07-Apr-21,2122/01,SME,N,
421588,THURSTON PARISH COUNCIL,"147,739.69",CIL,Contributions to other Bodies,07-Apr-21,2122/01,SME,N,
421589,TOSTOCK PARISH COUNCIL,"4,541.77",CIL,Contributions to other Bodies,07-Apr-21,2122/01,SME,N,
421590,WALSHAM LE WILLOWS PARISH COUNCIL,"40,777.00",CIL,Contributions to other Bodies,07-Apr-21,2122/01,SME,N,
351723,WINGFIELD BARNS CIC,"8,208.00",CIL,Grants,16-Apr-21,2122/01,SME,N,
351894,WINGFIELD BARNS CIC,"5,952.10",Community Fund Projects-Grants,Grants,23-Apr-21,2122/01,SME,N,
421591,WOOLPIT PARISH COUNCIL,"54,339.15",CIL,Contributions to other Bodies,07-Apr-21,2122/01,SME,N,
421592,WORTHAM AND BURGATE PARISH COUNCIL,"7,143.03",CIL,Contributions to other Bodies,07-Apr-21,2122/01,SME,N,
421593,WYVERSTONE PARISH COUNCIL,"3,564.19",CIL,Contributions to other Bodies,07-Apr-21,2122/01,SME,N,
351102,SUFFOLK COUNTY COUNCIL,986.63,Info Mgmt,Contracted Services,14-Mar-21,2122/01,LGE,Y,50%
351414,SUFFOLK COUNTY COUNCIL,"2,338.08",Tenants Forum,Computer Equpt Purchases,29-Mar-21,2122/01,LGE,Y,50%
351446,SUFFOLK COUNTY COUNCIL,"1,905.00",Land Chgs,Contracted Services,30-Mar-21,2122/01,LGE,N,
351553,SUFFOLK COUNTY COUNCIL,"3,595.00",Pre App Charging,Highways  Consultancy,06-Apr-21,2122/01,LGE,N,
351554,SUFFOLK COUNTY COUNCIL,"1,750.00",Pre App Charging,Prof & Consultancy Fees,06-Apr-21,2122/01,LGE,N,
351592,SUFFOLK COUNTY COUNCIL,"13,000.00",CIL,Grants,08-Apr-21,2122/01,LGE,N,
351593,SUFFOLK COUNTY COUNCIL,"4,800.00",CIL,Grants,08-Apr-21,2122/01,LGE,N,
351606,SUFFOLK COUNTY COUNCIL,"125,000.00",Mand Disabled Facilities Grant,Grants,08-Apr-21,2122/01,LGE,N,
351628,SUFFOLK COUNTY COUNCIL,"8,888.80",Independent Living Service,Contributions & Donations,09-Apr-21,2122/01,LGE,N,
351884,SUFFOLK COUNTY COUNCIL,527.78,Organisational Devt,Contracted Services,22-Apr-21,2122/01,LGE,Y,50%
351972,SUFFOLK COUNTY COUNCIL,"1,444,748.15",CIL,Grants,29-Apr-21,2122/01,LGE,N,
351973,FENN WRIGHT LLP,"1,575.00",General/Supervision & Mgmt,Prof & Consultancy Fees,30-Apr-21,2122/01,SME,N,
351440,COMPLETE MACHINE SERVICES,503.92,Building Services,Repairs,27-Jan-21,2122/01,SME,N,
351919,TELEFONICA UK LIMITED - O2,"2,107.03",ICT,Telephone Costs,27-Apr-21,2122/01,LGE,Y,50%
351417,KENNET EQUIPMENT LEASING,283.05,Creeting Rd Depot,Operating Lease Payments,29-Mar-21,2122/01,SME,Y,50%
350833,SUFFOLK ADVERTISING,350,Organisational Devt,Advertising&mkting (non-staff),26-Feb-21,2122/01,LGE,Y,50%
351242,SUFFOLK ADVERTISING,718.5,Organisational Devt,Advertising&mkting (non-staff),18-Mar-21,2122/01,LGE,Y,50%
351447,SUFFOLK ADVERTISING,"1,597.00",Organisational Devt,Advertising&mkting (non-staff),30-Mar-21,2122/01,LGE,Y,50%
351485,CIVICA UK LIMITED,"1,500.00",Governance,Desktop Software,31-Mar-21,2122/01,LGE,Y,50%
421716,GAZPROM ENERGY,35.4,"11 Market Place, Stowmarket",Gas,23-Apr-21,2122/01,SME,N,
421716,GAZPROM ENERGY,312.39,Creeting Rd Depot,Gas,23-Apr-21,2122/01,SME,Y,50%
421716,GAZPROM ENERGY,25.42,General/Supervision & Mgmt,Gas,23-Apr-21,2122/01,SME,N,
421716,GAZPROM ENERGY,27.88,Headquarters General,Gas,23-Apr-21,2122/01,SME,N,
421716,GAZPROM ENERGY,"-1,064.88",Pure Gym & Adjacent Building,Gas,23-Apr-21,2122/01,SME,N,
421716,GAZPROM ENERGY,"6,910.47",Sheltered Accommodation,Gas,23-Apr-21,2122/01,SME,N,
421716,GAZPROM ENERGY,526.61,Temporary Accommodation,Gas,23-Apr-21,2122/01,SME,N,
421716,GAZPROM ENERGY,342.82,Tenancy Services,Gas,23-Apr-21,2122/01,SME,N,
351882,INSTITUTE OF LICENSING LTD,310,Taxi & Private Hire Licensing,Professional Subs (Staff),16-Apr-21,2122/01,LGE,N,
351232,WHYBROW PROPERTY SOLUTIONS LTD,"8,779.79",Responsive maintenance,Repairs,19-Mar-21,2122/01,SME,N,
351233,WHYBROW PROPERTY SOLUTIONS LTD,"15,000.00",Building Services,Repairs,19-Mar-21,2122/01,SME,N,
351301,WHYBROW PROPERTY SOLUTIONS LTD,"11,211.13",Building Services,Repairs,23-Mar-21,2122/01,SME,N,
351580,WHYBROW PROPERTY SOLUTIONS LTD,"8,799.00",Council House Adaptions,Improvements,07-Apr-21,2122/01,SME,N,
351817,WHYBROW PROPERTY SOLUTIONS LTD,"2,032.72",Building Services,Repairs,19-Apr-21,2122/01,SME,N,
351825,WHYBROW PROPERTY SOLUTIONS LTD,"6,028.42",Building Services,Repairs,19-Apr-21,2122/01,SME,N,
351609,L A C CLEANING CONTRACTORS LIMITED,350,Temporary Accommodation,General Cleaning,09-Apr-21,2122/01,SME,N,
351692,L A C CLEANING CONTRACTORS LIMITED,270.5,Other HRA Temp Accommodation,"Equipment, Tools & Materials",13-Apr-21,2122/01,SME,N,
351721,L A C CLEANING CONTRACTORS LIMITED,"1,650.50",Building Services,Repairs,15-Apr-21,2122/01,SME,N,
351467,STOWMARKET CHURCH CHARITY,"15,000.00",Stowmarket Football Ground,Rent Payable,27-Mar-21,2122/01,SME,N,
351814,LONDON SOUTH BANK UNIVERSITY,"6,935.00",Organisational Devt,Post-Entry Training,30-Sep-20,2122/01,LGE,Y,50%
421706,BT DIRECT DEBIT,"10,595.31",ICT,Telephone Costs,21-Mar-21,2122/01,LGE,Y,50%
351471,TRADITION (UK) LTD,"1,520.55",Treasury Management,Prof & Consultancy Fees,31-Mar-21,2122/01,LGE,N,
351442,GRANICUS FIRMSTEP LIMITED,"1,450.00",ICT,Desktop Software,29-Mar-21,2122/01,SME,Y,50%
351683,GRANICUS FIRMSTEP LIMITED,"21,192.38",ICT,Software Licnse (Line of Bus) ,13-Apr-21,2122/01,SME,Y,50%
351863,ASHFIELD COMMUNITY COUNCIL,"2,094.60",Community Fund Projects-Grants,Grants,22-Apr-21,2122/01,SME,N,
351797,OPUS PEOPLE SOLUTIONS LTD,"1,393.26",Current Liabilities,Agency Staff Holding A/C,09-Apr-21,2122/01,SME,N,
351798,OPUS PEOPLE SOLUTIONS LTD,"1,138.46",Current Liabilities,Agency Staff Holding A/C,15-Apr-21,2122/01,SME,N,
351905,OPUS PEOPLE SOLUTIONS LTD,"1,894.39",Current Liabilities,Agency Staff Holding A/C,22-Apr-21,2122/01,SME,N,
351468,ECOSYSTEMS TREE & GROUNDS CARE,"1,825.00",Tenancy Services,Grounds & Site Maintenance,31-Mar-21,2122/01,SME,N,
350726,CORNERSTONE BARRISTERS,"7,200.00",Devt Management - Apps,Legal Expenses,22-Feb-21,2122/01,SME,N,
351006,CORNERSTONE BARRISTERS,"85,075.00",Devt Management - Appeals,Legal Expenses,10-Mar-21,2122/01,SME,N,
351007,CORNERSTONE BARRISTERS,"13,775.00",Devt Management - Appeals,Legal Expenses,10-Mar-21,2122/01,SME,N,
351131,CORNERSTONE BARRISTERS,"2,100.00",Devt Management - Apps,Legal Expenses,16-Mar-21,2122/01,SME,N,
351722,CORNERSTONE BARRISTERS,"4,500.00",CIL,Prof & Consultancy Fees,16-Apr-21,2122/01,SME,Y,50%
351519,VERTAS GROUP LTD,"1,088.12",HQ Sites Regeneration,Contracted Services,31-Mar-21,2122/01,SME,N,
351519,VERTAS GROUP LTD,306.88,Unapportionable Central OHs,Contracted Services,31-Mar-21,2122/01,SME,N,
351900,MATT ALLMAN LTD T/A MOVEITCLEARITFINDIT,"1,190.00",Homelessness Private Sector,Removal Expenses,18-Apr-21,2122/01,SME,N,
351854,BIRKETTS LLP,600,Organisational Devt,Legal Expenses,12-Apr-21,2122/01,LGE,Y,50%
351773,GALLAGHER CAR & VAN RENTALS LTD,"1,335.71",Jnt Waste Contract,Refuse Contract,09-Mar-21,2122/01,LGE,N,
351577,FORESOLUTIONS LTD,534.1,Open Spaces,Plant & Vehicle - Other costs,08-Apr-21,2122/01,SME,N,
351577,FORESOLUTIONS LTD,119.9,Street & Major Road Cleansing,Plant & Vehicle - Other costs,08-Apr-21,2122/01,SME,N,
351865,EARL STONHAM VILLAGE HALL,"1,787.10",Community Fund Projects-Grants,Grants,22-Apr-21,2122/01,SME,N,
351889,BACTON VILLAGE HALL,"5,860.00",Community Fund Projects-Grants,Grants,23-Apr-21,2122/01,SME,N,
351650,D A BEVAN,300,Taxi & Private Hire Licensing,Prof & Consultancy Fees,31-Mar-21,2122/01,SME,N,
351781,FROST AND PARTNERS,597,Rent Deposit Scheme,Misc Premises Costs,19-Apr-21,2122/01,SME,N,
351781,FROST AND PARTNERS,894,Rent Deposit Scheme,Misc Premises Costs,19-Apr-21,2122/01,SME,N,
351788,GRANGEWOOD PLASTIC PACKAGING LTD,"9,522.00",Domestic Waste,Refuse Sacks,07-Apr-21,2122/01,SME,0,
421708,HM COURTS & TRIBUNALS SERVICE  (DD ONLY),355,Tenancy Services,Specialist Legal Expenses,06-Apr-21,2122/01,LGE,Y,100%
351581,PUBLIC SEWER SERVICES,"1,145.28",Unadopted Drains & Sewers,Improvements,31-Mar-21,2122/01,SME,N,
351582,PUBLIC SEWER SERVICES,"2,121.02",Unadopted Drains & Sewers,Improvements,31-Mar-21,2122/01,SME,N,
351583,PUBLIC SEWER SERVICES,"1,362.61",Building Services,Repairs,31-Mar-21,2122/01,SME,N,
351587,PUBLIC SEWER SERVICES,"1,005.12",Building Services,Repairs,31-Mar-21,2122/01,SME,N,
351590,PUBLIC SEWER SERVICES,"1,362.61",Building Services,Repairs,31-Mar-21,2122/01,SME,N,
351696,PUBLIC SEWER SERVICES,"1,131.42",Responsive maintenance,Contracted Services,31-Mar-21,2122/01,SME,N,
351713,PUBLIC SEWER SERVICES,500,Building Services,Repairs,15-Apr-21,2122/01,SME,N,
351689,SMARTSURVEY LTD,"1,080.00",Communications,Advertising&mkting (non-staff),14-Apr-21,2122/01,SME,Y,50%
351777,ASPECT CONTRACTS LTD,"3,433.00",Asbestos,Improvements,16-Apr-21,2122/01,LGE,N,
421594,RIX PETROLEUM (EAST ANGLIA) LTD,"1,051.67",Sheltered Accommodation,Heating Oil,08-Apr-21,2122/01,SME,N,
421594,RIX PETROLEUM (EAST ANGLIA) LTD,592.8,Tenancy Services,Heating Oil,08-Apr-21,2122/01,SME,N,
421594,RIX PETROLEUM (EAST ANGLIA) LTD,"6,923.42",Open Spaces,Plant & Vehicle Fuel,08-Apr-21,2122/01,SME,N,
421594,RIX PETROLEUM (EAST ANGLIA) LTD,"1,241.15",Tenancy Services,Heating Oil,08-Apr-21,2122/01,SME,N,
351774,D & C LIFTS LTD,610,Sheltered Accommodation,Repairs,19-Apr-21,2122/01,SME,N,
351487,GIPPING OCCUPATIONAL HEALTH LTD,675,Health & Safety,Contracted Services,31-Mar-21,2122/01,SME,Y,50%
351488,GIPPING OCCUPATIONAL HEALTH LTD,675,Health & Safety,Contracted Services,31-Mar-21,2122/01,SME,Y,50%
351612,GIPPING OCCUPATIONAL HEALTH LTD,675,Health & Safety,Contracted Services,09-Apr-21,2122/01,SME,Y,50%
351917,PARK AVENUE RECRUITMENT LTD,"1,845.00",Devt Management - Apps,Prof & Consultancy Fees,20-Apr-21,2122/01,SME,Y,48.50%
351494,JOHN FORD GROUP LTD,"12,935.00",Mand Disabled Facilities Grant,Grants,01-Apr-21,2122/01,SME,N,
351474,BRITISH RED CROSS,936,Organisational Devt,Training,25-Mar-21,2122/01,SME,N,
421707,BRITISH RED CROSS,936,Organisational Devt,Training,25-Mar-21,2122/01,SME,N,
351539,TOP FLOORS (EAST ANGLIA) LTD,988.9,Other HRA Temp Accommodation,"Equipment, Tools & Materials",31-Mar-21,2122/01,SME,N,
351802,TPAS LTD,"1,795.00",Tenants Forum,Tenants Fora & Associations,01-Feb-21,2122/01,SME,N,
351435,ICENI,"10,038.43",Stowmarket Middle School,Prof & Consultancy Fees,30-Mar-21,2122/01,SME,N,
351765,ICENI,"8,600.00",Land at Barham,Prof & Consultancy Fees,16-Apr-21,2122/01,SME,N,
351782,GREENFUTURE SOLUTIONS LTD,"1,971.00",Mand Disabled Facilities Grant,Grants,20-Apr-21,2122/01,SME,N,
421719,SJS LEGAL,"15,037.76",Building Services,Payments to Tenants,13-Apr-21,2122/01,SME,N,
351520,OAKPARK SECURITY SYSTEMS LTD,"8,453.50",Temporary Accommodation,Contracted Services,31-Mar-21,2122/01,LGE,N,
351531,EDMUNDSON ELECTRICAL LTD (IPSWICH),807.05,Building Services,"Equipment, Tools & Materials",01-Apr-21,2122/01,LGE,N,
351636,WEST DEVON BOROUGH COUNCIL,"3,077.00",Financial Servs,Subscriptions,12-Apr-21,2122/01,LGE,N,
351642,EAST SUFFOLK COUNCIL,625,Independent Living Service,Contributions & Donations,15-Feb-21,2122/01,LGE,N,
351645,EAST SUFFOLK COUNCIL,575,Independent Living Service,Prof & Consultancy Fees,15-Feb-21,2122/01,LGE,N,
351501,DG ACCESSIBLE DESIGNS,"2,173.08",Mand Disabled Facilities Grant,Grants,01-Apr-21,2122/01,SME,N,
351783,DG ACCESSIBLE DESIGNS,563.04,Mand Disabled Facilities Grant,Grants,20-Apr-21,2122/01,SME,N,
351705,THINKING PLACE LTD,"2,147.09",4 Towns Visioning,Prof & Consultancy Fees,18-Mar-21,2122/01,SME,N,
351498,WASHCO LTD,467,Sheltered Accommodation,"Equipment, Tools & Materials",01-Apr-21,2122/01,SME,N,
351594,ANGLIA COMMERCIAL FLOORING LTD,664.12,Building Services,Repairs,30-Mar-21,2122/01,SME,N,
351595,ANGLIA COMMERCIAL FLOORING LTD,"1,266.02",Building Services,Repairs,08-Apr-21,2122/01,SME,N,
351596,ANGLIA COMMERCIAL FLOORING LTD,551.25,Building Services,Repairs,08-Apr-21,2122/01,SME,N,
351597,ANGLIA COMMERCIAL FLOORING LTD,500.81,Building Services,Repairs,08-Apr-21,2122/01,SME,N,
351598,ANGLIA COMMERCIAL FLOORING LTD,264.52,Building Services,Repairs,08-Apr-21,2122/01,SME,N,
351599,ANGLIA COMMERCIAL FLOORING LTD,547.97,Building Services,Repairs,08-Apr-21,2122/01,SME,N,
351600,ANGLIA COMMERCIAL FLOORING LTD,355.38,Building Services,Repairs,08-Apr-21,2122/01,SME,N,
351602,ANGLIA COMMERCIAL FLOORING LTD,442.75,Building Services,Repairs,08-Apr-21,2122/01,SME,N,
351611,ANGLIA COMMERCIAL FLOORING LTD,462.28,Building Services,Repairs,08-Apr-21,2122/01,SME,N,
351613,ANGLIA COMMERCIAL FLOORING LTD,703.98,Building Services,Repairs,10-Apr-21,2122/01,SME,N,
351614,ANGLIA COMMERCIAL FLOORING LTD,480.6,Building Services,Repairs,10-Apr-21,2122/01,SME,N,
351615,ANGLIA COMMERCIAL FLOORING LTD,410.32,Building Services,Repairs,10-Apr-21,2122/01,SME,N,
351616,ANGLIA COMMERCIAL FLOORING LTD,391.66,Building Services,Repairs,10-Apr-21,2122/01,SME,N,
351617,ANGLIA COMMERCIAL FLOORING LTD,633.29,Building Services,Repairs,10-Apr-21,2122/01,SME,N,
351618,ANGLIA COMMERCIAL FLOORING LTD,513.87,Building Services,Repairs,10-Apr-21,2122/01,SME,N,
351823,ANGLIA COMMERCIAL FLOORING LTD,600.17,Voids Maintenance,Repairs,07-Jan-21,2122/01,SME,N,
421711,PARKYNS LETTINGS BURY ST EDMUNDS,750,Guaranteed Rent Scheme,Misc Supplies & Services Costs,15-Apr-21,2122/01,SME,N,
421711,PARKYNS LETTINGS BURY ST EDMUNDS,"1,250.00",Guaranteed Rent Scheme,Rent Payable,15-Apr-21,2122/01,SME,N,
421712,PARKYNS LETTINGS BURY ST EDMUNDS,913.41,Rent Deposit Scheme,Misc Premises Costs,15-Apr-21,2122/01,SME,N,
351951,TRANSPORT PLANNING ASSOCIATES LTD,"4,000.00",Devt Management - Appeals,Highways  Consultancy,26-Feb-21,2122/01,SME,N,
351915,INFORMA (BARBOUR/UBM UK) LTD,"2,180.00",Health & Safety,Professional Subs (Staff),18-Jan-21,2122/01,LGE,Y,50%
351627,CROSS MEDIA PRINT& DIGITAL SOLUTIONS LTD,"1,602.97",Business Cont/Emergency Plan,Property Servicing,31-Mar-21,2122/01,SME,Y,50%
351766,MID SUFFOLK GROWTH LTD,"162,410.72",Regen Fund - HQ Sites,Prof & Consultancy Fees,15-Apr-21,2122/01,SME,N,
351767,MID SUFFOLK GROWTH LTD,"27,464.08",Regen Fund - HQ Sites,Prof & Consultancy Fees,16-Apr-21,2122/01,SME,N,
351767,MID SUFFOLK GROWTH LTD,"186,234.23",Needham HQ S106 Units,Purchase of Land & Buildings,16-Apr-21,2122/01,SME,N,
351420,QUADIENT UK LIMITED,"1,000.00",Central Postal Serv,Postage,25-Mar-21,2122/01,LGE,Y,50%
351908,GATEHOUSE CARING IN EAST ANGLIA,277,RoughSleepersInterventionYr3,Misc Supplies & Services Costs,26-Apr-21,2122/01,SME,N,
351310,STOWMARKET LAWN TENNIS CLUB,"11,127.37",Community Fund Projects-Grants,Grants,25-Mar-21,2122/01,SME,N,
351786,GIPPING CONSTRUCTION LTD,"11,639.90",Regen Fund - HQ Sites,Prof & Consultancy Fees,29-Mar-21,2122/01,SME,N,
351786,GIPPING CONSTRUCTION LTD,"152,387.10",Needham Market Middle School,Prof & Consultancy Fees,29-Mar-21,2122/01,SME,N,
351844,PRIVATE LANDLORD,786.5,Rent Deposit Scheme,Rent Payable,22-Apr-21,2122/01,ST,N,
351401,MRS SHELLEY SPALL T/A CLEANING COVERED,672,Business Cont/Emergency Plan,General Cleaning,29-Mar-21,2122/01,SME,N,
351402,MRS SHELLEY SPALL T/A CLEANING COVERED,672,Business Cont/Emergency Plan,General Cleaning,29-Mar-21,2122/01,SME,N,
351491,MRS SHELLEY SPALL T/A CLEANING COVERED,672,Other HRA Temp Accommodation,"Equipment, Tools & Materials",06-Apr-21,2122/01,SME,N,
351718,MRS SHELLEY SPALL T/A CLEANING COVERED,672,Business Cont/Emergency Plan,General Cleaning,14-Apr-21,2122/01,SME,N,
351776,MRS SHELLEY SPALL T/A CLEANING COVERED,672,Business Cont/Emergency Plan,General Cleaning,19-Apr-21,2122/01,SME,N,
351927,MRS SHELLEY SPALL T/A CLEANING COVERED,512,Business Cont/Emergency Plan,General Cleaning,27-Apr-21,2122/01,SME,N,
351684,PRIVATE LANDLORD,786.5,Guaranteed Rent Scheme,Rent Payable,14-Apr-21,2122/01,ST,N,
351451,BURGESS HOMES LTD,"207,948.93","Back Hills, Botesdale, S106",Prof & Consultancy Fees,02-Mar-21,2122/01,SME,N,
351785,TEMPLE LETTINGS,650,Guaranteed Rent Scheme,Rent Payable,20-Apr-21,2122/01,SME,N,
351556,DGL QUALITY MANAGEMENT LTD,870.76,Needham Market Middle School,Prof & Consultancy Fees,31-Mar-21,2122/01,SME,N,
351644,CENTRAL EVENT HIRE LTD,"2,118.18",General Elections,"Equipment, Tools & Materials",25-Feb-21,2122/01,LGE,N,
351454,RSK LAND & DEVELOPMENT ENGINEERING LTD,"4,000.00",Strategic Assets,Prof & Consultancy Fees,30-Mar-21,2122/01,LGE,N,
351561,COMMONPLACE DIGITAL LTD,"9,540.00",BRRP - Sustainable & Connected,Prof & Consultancy Fees,26-Mar-21,2122/01,SME,Y,50%
421551,DEMENTIA UK,322.66,Bring Sites,Contributions & Donations,07-Apr-21,2122/01,SME,N,
351904,CROWD CONTROL TECHNOLOGIES LTD,"7,920.00",Communications,Subscriptions,26-Apr-21,2122/01,SME,Y,50%
421724,KEYSTONE IEA LTD,966.92,Rent Deposit Scheme,Misc Premises Costs,28-Apr-21,2122/01,SME,N,
351560,DMA HEALTH AND SAFETY LTD,-130,Roofing,Prof & Consultancy Fees,08-Apr-21,2122/01,SME,N,
421704,G & G SIGNS,-35,Street Naming & Numbering,Signs,09-Apr-21,2122/01,SME,N,
351827,G4S CASH SOLUTIONS LTD,-411.84,Financial Servs,Contracted Services,20-Apr-21,2122/01,LGE,N,
351830,G4S CASH SOLUTIONS LTD,-606.32,Financial Servs,Contracted Services,31-Mar-21,2122/01,LGE,N,
351831,G4S CASH SOLUTIONS LTD,-69.9,Financial Servs,Contracted Services,20-Apr-21,2122/01,LGE,N,
827,LOCAL GOVERNMENT ASSOCIATION,-149,Organisational Devt,Corporate Training,27-Apr-21,2122/01,LGE,Y,50%
EBC0040937,LOCAL GOVERNMENT ASSOCIATION,178.8,Current Assets,LLOYDS GENERAL PAYMENTS,29-Apr-21,2122/01,LGE,N,
351475,BRITISH RED CROSS,-936,Organisational Devt,Training,25-Mar-21,2122/01,SME,N,
351641,BRITISH RED CROSS,-117,Organisational Devt,Health & Safety Training,29-Mar-21,2122/01,SME,N,
352170,ACADEMY BUILDING CONTRACTS LTD,871.06,Building Services,Repairs,08-May-21,2122/02,SME,N,
352172,ACADEMY BUILDING CONTRACTS LTD,316.08,Building Services,Repairs,08-May-21,2122/02,SME,N,
352173,ACADEMY BUILDING CONTRACTS LTD,"3,166.77",Building Services,Repairs,08-May-21,2122/02,SME,N,
352322,ACADEMY BUILDING CONTRACTS LTD,979.94,Building Services,Repairs,15-May-21,2122/02,SME,N,
352323,ACADEMY BUILDING CONTRACTS LTD,516.04,Building Services,Repairs,15-May-21,2122/02,SME,N,
352324,ACADEMY BUILDING CONTRACTS LTD,"1,306.58",Building Services,Repairs,15-May-21,2122/02,SME,N,
352325,ACADEMY BUILDING CONTRACTS LTD,"2,695.72",Building Services,Repairs,15-May-21,2122/02,SME,N,
352204,AE WHITE SURFACING,700,C Parks General,Repairs,10-May-21,2122/02,SME,N,
352265,AE WHITE SURFACING,600,Building Services,Repairs,17-Dec-20,2122/02,SME,N,
352266,AE WHITE SURFACING,800,Building Services,Repairs,17-Dec-20,2122/02,SME,N,
352267,AE WHITE SURFACING,"4,175.00",Estate Imps/parking areas,Improvements,11-Mar-21,2122/02,SME,N,
352396,AE WHITE SURFACING,"1,727.00",EV Charge Points LA's,"Equipment, Tools & Materials",19-May-21,2122/02,SME,N,
352506,ALLPAY LTD,488.45,Financial Servs,Contracted Services,30-Apr-21,2122/02,LGE,N,
352507,ALLPAY LTD,308.41,Financial Servs,Contracted Services,30-Apr-21,2122/02,LGE,N,
351851,ANGLIAN WATER,505.95,Water Sampling,Sampling & Analysis,20-Apr-21,2122/02,LGE,N,
352068,ANGLIAN WATER,"1,007.84",Tenancy Services,Water Rates - Metered,15-Apr-21,2122/02,LGE,N,
352374,ANGLIAN WATER,494.15,Tenancy Services,Water Rates - Metered,04-May-21,2122/02,LGE,N,
352021,BINDER LTD,356.65,Sewage Treatment Works,Contracted Services,30-Apr-21,2122/02,SME,N,
352235,BLUE FLAME (COLCHESTER) LTD,"26,081.79",Planned Maint - Heating,Property Servicing,05-May-21,2122/02,SME,N,
421725,BLUE FLAME (COLCHESTER) LTD,"13,675.00",Planned Maint - Heating,Property Servicing,05-May-21,2122/02,SME,N,
421725,BLUE FLAME (COLCHESTER) LTD,"3,146.18",PV Panels,Repairs,05-May-21,2122/02,SME,N,
421735,BLUE FLAME (COLCHESTER) LTD,"9,001.06",Planned Maint - Heating,Property Servicing,12-May-21,2122/02,SME,N,
421735,BLUE FLAME (COLCHESTER) LTD,283.8,PV Panels,Contracted Services,12-May-21,2122/02,SME,N,
421738,BLUE FLAME (COLCHESTER) LTD,129.44,Disabled Facilities (Revenue),Repairs,19-May-21,2122/02,SME,N,
421738,BLUE FLAME (COLCHESTER) LTD,"13,734.44",Planned Maint - Heating,Property Servicing,19-May-21,2122/02,SME,N,
421738,BLUE FLAME (COLCHESTER) LTD,"16,699.00",Central Heating,Improvements,19-May-21,2122/02,SME,N,
421738,BLUE FLAME (COLCHESTER) LTD,170.28,PV Panels,Contracted Services,19-May-21,2122/02,SME,N,
421742,BLUE FLAME (COLCHESTER) LTD,"13,072.19",Planned Maint - Heating,Property Servicing,26-May-21,2122/02,SME,N,
421742,BLUE FLAME (COLCHESTER) LTD,"1,191.96",PV Panels,Contracted Services,26-May-21,2122/02,SME,N,
352247,BOWER FULLER,"1,237.20",Sheltered Accommodation,Fire Prevention,10-May-21,2122/02,SME,N,
352277,BOWER FULLER,"1,933.20",Temporary Accommodation,Fire Prevention,07-May-21,2122/02,SME,N,
352279,BOWER FULLER,"52,284.25",Stradbrk Pl-Refurb,Repairs,06-May-21,2122/02,SME,N,
352280,BOWER FULLER,369.64,Responsive maintenance,Fire Prevention,07-May-21,2122/02,SME,N,
352281,BOWER FULLER,369.64,Tenancy Services,Fire Prevention,07-May-21,2122/02,SME,N,
352282,BOWER FULLER,369.64,Responsive maintenance,Fire Prevention,07-May-21,2122/02,SME,N,
352283,BOWER FULLER,369.64,Responsive maintenance,Fire Prevention,07-May-21,2122/02,SME,N,
352284,BOWER FULLER,369.64,Responsive maintenance,Fire Prevention,07-May-21,2122/02,SME,N,
352285,BOWER FULLER,369.64,Responsive maintenance,Fire Prevention,07-May-21,2122/02,SME,N,
352286,BOWER FULLER,369.64,Sheltered Accommodation,Fire Prevention,07-May-21,2122/02,SME,N,
352287,BOWER FULLER,369.64,Responsive maintenance,Fire Prevention,07-May-21,2122/02,SME,N,
352288,BOWER FULLER,369.64,Tenancy Services,Fire Prevention,07-May-21,2122/02,SME,N,
352289,BOWER FULLER,369.64,Responsive maintenance,Fire Prevention,07-May-21,2122/02,SME,N,
352290,BOWER FULLER,"1,232.26",Sheltered Accommodation,Improvements,07-May-21,2122/02,SME,N,
352195,AQUASAMPLERS,375,Water Sampling,Sampling & Analysis,30-Apr-21,2122/02,SME,N,
352001,CEDARS HOTEL LTD,"2,160.00",Homelessness Private Sector,B&B Costs,30-Apr-21,2122/02,SME,Y,50%
352015,CEDARS HOTEL LTD,454.83,Homelessness Private Sector,B&B Costs,02-Apr-21,2122/02,SME,N,
352016,CEDARS HOTEL LTD,600,Other HRA Temp Accommodation,"Equipment, Tools & Materials",02-Apr-21,2122/02,SME,N,
352390,CEDARS HOTEL LTD,790,Homelessness Private Sector,B&B Costs,13-May-21,2122/02,SME,N,
352041,CENTRAL TYRE LTD,800,Street & Major Road Cleansing,Plant & Vehicle - Other costs,04-May-21,2122/02,SME,N,
352112,CENTRAL TYRE LTD,447.04,Street & Major Road Cleansing,Plant & Vehicle - Other costs,05-May-21,2122/02,SME,N,
352126,CHIPSIDE LTD,526,C Parks General,Contracted Services,30-Apr-21,2122/02,SME,N,
352522,CLARKE FENCING LTD,292.79,Open Spaces,"Equipment, Tools & Materials",12-Apr-21,2122/02,SME,N,
352523,CLARKE FENCING LTD,563.18,Open Spaces,"Equipment, Tools & Materials",12-Apr-21,2122/02,SME,N,
351883,D W ADAMS LTD,"2,330.00",Building Services,Repairs,23-Apr-21,2122/02,SME,N,
352239,D W ADAMS LTD,"3,028.35",Council House Adaptions,Improvements,30-Apr-21,2122/02,SME,N,
352306,D W ADAMS LTD,"1,929.00",Building Services,Repairs,14-May-21,2122/02,SME,N,
352408,D W ADAMS LTD,"1,948.00",Disabled Facilities (Revenue),Repairs,20-May-21,2122/02,SME,N,
352393,DS MEAD LTD,"10,578.79",Renovation/Home Repair Grants,Grants,18-May-21,2122/02,SME,N,
352017,EAST ANGLIA CLEANING SERVICES LTD,"1,374.49",Jnt Waste Contract,General Cleaning,29-Apr-21,2122/02,SME,Y,50%
352165,EAST ANGLIA CLEANING SERVICES LTD,451.47,Open Spaces,General Cleaning,29-Apr-21,2122/02,SME,N,
352421,FAAC UK LTD,285,C Parks General,Repairs,18-May-21,2122/02,LGE,N,
351976,FELLBRIDGE BUILDING SERVICES,"3,209.70",Building Services,Repairs,29-Apr-21,2122/02,SME,N,
351977,FELLBRIDGE BUILDING SERVICES,"2,262.44",Building Services,Repairs,29-Apr-21,2122/02,SME,N,
351978,FELLBRIDGE BUILDING SERVICES,"12,655.73",Building Services,Repairs,29-Apr-21,2122/02,SME,N,
351979,FELLBRIDGE BUILDING SERVICES,"10,208.78",Building Services,Repairs,29-Apr-21,2122/02,SME,N,
352197,FELLBRIDGE BUILDING SERVICES,619.27,Building Services,Repairs,10-May-21,2122/02,SME,N,
352248,FELLBRIDGE BUILDING SERVICES,"2,482.34",Building Services,Repairs,11-May-21,2122/02,SME,N,
352249,FELLBRIDGE BUILDING SERVICES,"11,691.39",Building Services,Repairs,11-May-21,2122/02,SME,N,
352250,FELLBRIDGE BUILDING SERVICES,"11,407.34",Building Services,Repairs,11-May-21,2122/02,SME,N,
352251,FELLBRIDGE BUILDING SERVICES,"12,010.64",Building Services,Repairs,11-May-21,2122/02,SME,N,
352361,FELLBRIDGE BUILDING SERVICES,762.24,Building Services,Repairs,17-May-21,2122/02,SME,N,
352409,FELLBRIDGE BUILDING SERVICES,"7,865.03",Building Services,Repairs,20-May-21,2122/02,SME,N,
352410,FELLBRIDGE BUILDING SERVICES,"6,967.00",Building Services,Repairs,20-May-21,2122/02,SME,N,
352038,FORE-MOST GARAGE DOORS LTD,"1,161.17",Building Services,Repairs,30-Apr-21,2122/02,SME,N,
352029,G4S CASH SOLUTIONS LTD,640.64,Financial Servs,Contracted Services,02-Mar-21,2122/02,LGE,N,
352030,G4S CASH SOLUTIONS LTD,457.6,Financial Servs,Contracted Services,02-Mar-21,2122/02,LGE,N,
352012,GHB ROOFING,"2,525.00",Wingfield Barns,Repairs,27-Apr-21,2122/02,SME,N,
352070,GHB ROOFING,"15,503.81",Roofing,Major Contracts,05-May-21,2122/02,SME,N,
352229,GHB ROOFING,"1,370.00",Building Services,Repairs,10-May-21,2122/02,SME,N,
352230,GHB ROOFING,915,Building Services,Repairs,10-May-21,2122/02,SME,N,
352232,GHB ROOFING,"1,240.00",Building Services,Repairs,10-May-21,2122/02,SME,N,
352129,HUDSON MEDIA PARTNERSHIP LTD,405,Elections,Misc Supplies & Services Costs,30-Apr-21,2122/02,SME,Y,50%
352336,KENDA-CLEAN,62,Creeting Rd Depot,Window Cleaning,15-May-21,2122/02,SME,Y,50%
352336,KENDA-CLEAN,"2,074.00",Sheltered Accommodation,Window Cleaning,15-May-21,2122/02,SME,N,
352336,KENDA-CLEAN,123,Temporary Accommodation,Window Cleaning,15-May-21,2122/02,SME,N,
352394,LJ GAMMER (STOWMARKET) LTD,385.93,Building Services,Repairs,19-May-21,2122/02,SME,N,
351922,M & H CIVIL ENGINEERING LTD,476.2,Building Services,Repairs,27-Apr-21,2122/02,SME,N,
352316,M & H CIVIL ENGINEERING LTD,455.5,Building Services,Repairs,13-May-21,2122/02,SME,N,
352317,M & H CIVIL ENGINEERING LTD,476.2,Building Services,Repairs,13-May-21,2122/02,SME,N,
352237,MATERIAL CHANGE COMPOSTING LTD,466.72,Open Spaces,Waste Disposal,30-Apr-21,2122/02,LGE,N,
352294,MB TREES (EAST ANGLIA) LTD,480,Amenity Areas,Tree felling/maintenance,13-May-21,2122/02,SME,N,
352320,MID SUFFOLK FENCING LTD,"1,703.76",Building Services,Repairs,14-May-21,2122/02,SME,N,
351178,MIXBROW LTD,"19,512.05",Council House Adaptions,Improvements,28-Feb-21,2122/02,SME,N,
351975,NEEDHAM MARKET AERIALS LTD,390,Responsive maintenance,Repairs,26-Apr-21,2122/02,SME,N,
352315,PITMAN BROTHERS (DECORATORS) LTD,800,Building Services,Repairs,15-May-21,2122/02,SME,N,
352296,PLASUFIX LTD,"2,944.81",Roofing,Major Contracts,30-Apr-21,2122/02,SME,N,
351918,REID PLUMBING & HEATING CONTRACTORS LTD,"4,401.18",Central Heating,Major Contracts,27-Apr-21,2122/02,SME,N,
352094,REID PLUMBING & HEATING CONTRACTORS LTD,"8,523.22",Central Heating,Major Contracts,05-May-21,2122/02,SME,N,
352137,REID PLUMBING & HEATING CONTRACTORS LTD,"8,670.54",Central Heating,Major Contracts,19-Apr-21,2122/02,SME,N,
352257,REID PLUMBING & HEATING CONTRACTORS LTD,"8,545.42",Central Heating,Major Contracts,12-May-21,2122/02,SME,N,
352389,REID PLUMBING & HEATING CONTRACTORS LTD,"4,503.25",Central Heating,Major Contracts,19-May-21,2122/02,SME,N,
351763,S SACKER (CLAYDON) LTD,600.6,Building Services,Waste Disposal,15-Apr-21,2122/02,SME,Y,50%
352009,S SACKER (CLAYDON) LTD,699.86,Building Services,Waste Disposal,24-Apr-21,2122/02,SME,Y,50%
352114,S SACKER (CLAYDON) LTD,875.49,Building Services,Waste Disposal,04-May-21,2122/02,SME,Y,50%
352270,S SACKER (CLAYDON) LTD,431.21,Building Services,Waste Disposal,10-May-21,2122/02,SME,Y,50%
352403,S SACKER (CLAYDON) LTD,274.39,Building Services,Waste Disposal,15-May-21,2122/02,SME,Y,50%
352033,SEAGER HOME SOLUTIONS,"3,016.35",Building Services,Repairs,30-Apr-21,2122/02,SME,N,
351640,SHAW & SONS LTD,"3,334.31",General Elections,Stationery,23-Mar-21,2122/02,SME,Y,40%
352161,SOLUTIONS ON SECURITY SERVICES,754.38,Sheltered Accommodation,Repairs,07-May-21,2122/02,SME,N,
352299,SOLUTIONS ON SECURITY SERVICES,"1,014.31",Tacon Close Eye TDP,Repairs,13-May-21,2122/02,SME,N,
352340,SOLUTIONS ON SECURITY SERVICES,321.26,Sheltered Accommodation,Repairs,17-May-21,2122/02,SME,N,
352431,SUFFOLK POLICE & CRIME COMMISSIONER,"1,000.00",Homelessness Private Sector,Contributions to other Bodies,20-May-21,2122/02,LGE,N,
352225,SUFFOLK WINDOWS & CONSERVATORIES LTD,"2,659.99",Renovation/Home Repair Grants,Grants,10-May-21,2122/02,SME,N,
352027,TANKCHANGE LTD,"2,095.00",Central Heating,Improvements,30-Apr-21,2122/02,SME,N,
352028,TANKCHANGE LTD,"2,095.00",Central Heating,Improvements,30-Apr-21,2122/02,SME,N,
351941,THERMATECH,770,Sheltered Accommodation,Fire Prevention,28-Apr-21,2122/02,SME,N,
351942,THERMATECH,"2,375.00",Sheltered Accommodation,Fire Prevention,28-Apr-21,2122/02,SME,N,
352202,THOMPSON COOPER LTD,365,Street & Major Road Cleansing,Bins,11-May-21,2122/02,SME,N,
352262,THRIFTY CAR & VAN RENTAL,252,Elections,Misc Supplies & Services Costs,10-May-21,2122/02,LGE,Y,50%
352262,THRIFTY CAR & VAN RENTAL,30,Electoral Registration,Vehicle Hire,10-May-21,2122/02,LGE,Y,50%
352262,THRIFTY CAR & VAN RENTAL,53.71,Elections,Misc Supplies & Services Costs,10-May-21,2122/02,LGE,Y,50%
352189,TRUCKEAST LTD,512.16,Street & Major Road Cleansing,Plant & Vehicle - Other costs,10-May-21,2122/02,LGE,N,
352388,UK POWER NETWORKS,"29,028.03",Stradbrooke Pl - General Reps,Improvements,17-May-21,2122/02,LGE,N,
351909,WINDIMAN LTD,"1,470.00",Building Services,Repairs,26-Apr-21,2122/02,SME,N,
352141,WINDIMAN LTD,384.76,Building Services,Repairs,30-Apr-21,2122/02,SME,N,
352142,WINDIMAN LTD,"1,470.00",Building Services,Repairs,30-Apr-21,2122/02,SME,N,
352144,WINDIMAN LTD,"1,203.00",Building Services,Repairs,30-Apr-21,2122/02,SME,N,
352241,WINDIMAN LTD,735,Building Services,Repairs,11-May-21,2122/02,SME,N,
352242,WINDIMAN LTD,"1,000.00",Building Services,Repairs,11-May-21,2122/02,SME,N,
351906,WORKWEAR (EAST ANGLIA) LTD,"2,503.29",Building Services,Protective clothing,20-Apr-21,2122/02,SME,Y,50%
351958,WORKWEAR (EAST ANGLIA) LTD,699.67,Building Services,Protective clothing,22-Apr-21,2122/02,SME,Y,50%
352196,WORKWEAR (EAST ANGLIA) LTD,165.92,Open Spaces,Protective clothing,06-May-21,2122/02,SME,N,
352196,WORKWEAR (EAST ANGLIA) LTD,165.91,Street & Major Road Cleansing,Protective clothing,06-May-21,2122/02,SME,N,
352134,ARCHANT COMMUNITY MEDIA LTD,"1,155.66",Devt Management - Apps,Advertising&mkting (non-staff),30-Apr-21,2122/02,LGE,N,
352198,ARCHANT COMMUNITY MEDIA LTD,805.46,Devt Management - Apps,Advertising&mkting (non-staff),08-May-21,2122/02,LGE,N,
352333,ARCHANT COMMUNITY MEDIA LTD,"1,050.60",Devt Management - Apps,Advertising&mkting (non-staff),15-May-21,2122/02,LGE,N,
352032,HAYMARKET MEDIA GROUP LTD,"1,892.00",Devt Management - Apps,Subscriptions,01-May-21,2122/02,LGE,Y,45%
352217,LOCAL GOVERNMENT ASSOCIATION,200,Management Team,Conference Expenses,07-May-21,2122/02,LGE,Y,50%
352217,LOCAL GOVERNMENT ASSOCIATION,400,Cost of Democracy,Conference Expenses,07-May-21,2122/02,LGE,N,
421727,LOCAL GOVERNMENT ASSOCIATION,"9,882.50",Governance,Subscriptions,09-Apr-21,2122/02,LGE,N,
351934,NEWAUTO LTD T/A MOGO UK,"3,177.90",Taxi & Private Hire Licensing,Signs,28-Apr-21,2122/02,SME,N,
352369,SPORTS & LEISURE MANAGEMENT LTD,"1,491,179.00",Stwmkt Leis C - Refurb,Major Contracts,05-May-21,2122/02,LGE,N,
352461,IPSWICH BOROUGH COUNCIL,"1,538.97",Communications,Commercial Printing,21-May-21,2122/02,LGE,Y,50%
352478,SERCO LTD,"4,377.00",Domestic Waste,Refuse Contract,29-Apr-21,2122/02,LGE,Y,50%
352479,SERCO LTD,"22,179.86",Trade Waste,Refuse Contract,29-Apr-21,2122/02,LGE,Y,40%
352479,SERCO LTD,"77,664.58",Garden Waste,Refuse Contract,29-Apr-21,2122/02,LGE,Y,48%
352479,SERCO LTD,"292,516.56",Domestic Waste,Refuse Contract,29-Apr-21,2122/02,LGE,Y,47.50%
352480,SERCO LTD,"26,814.00",Domestic Waste,Refuse Contract,29-Apr-21,2122/02,LGE,Y,34.50%
352480,SERCO LTD,"48,423.00",Garden Waste,Refuse Contract,29-Apr-21,2122/02,LGE,Y,50%
351856,TRAVIS PERKINS TRADING CO LTD,486.48,Building Services,"Equipment, Tools & Materials",20-Apr-21,2122/02,LGE,Y,50%
351944,TRAVIS PERKINS TRADING CO LTD,641.45,Building Services,"Equipment, Tools & Materials",23-Apr-21,2122/02,LGE,Y,50%
351945,TRAVIS PERKINS TRADING CO LTD,"1,123.59",Building Services,"Equipment, Tools & Materials",23-Apr-21,2122/02,LGE,Y,50%
352205,TRAVIS PERKINS TRADING CO LTD,424.1,Building Services,"Equipment, Tools & Materials",06-May-21,2122/02,LGE,Y,50%
352275,TRAVIS PERKINS TRADING CO LTD,"34,805.21",Building Services,"Equipment, Tools & Materials",01-May-21,2122/02,LGE,Y,42%
421838,EDF ENERGY,314.19,C Parks General,Electricity,09-May-21,2122/02,LGE,N,
421838,EDF ENERGY,517.09,Creeting Rd Depot,Electricity,09-May-21,2122/02,LGE,Y,50%
421838,EDF ENERGY,15.02,General/Supervision & Mgmt,Electricity,09-May-21,2122/02,LGE,N,
421838,EDF ENERGY,257.51,Headquarters General,Electricity,09-May-21,2122/02,LGE,N,
421838,EDF ENERGY,"7,942.37",Leisure Contract,Electricity,09-May-21,2122/02,LGE,N,
421838,EDF ENERGY,381.23,Open Spaces,Electricity,09-May-21,2122/02,LGE,N,
421838,EDF ENERGY,416.87,Other HRA Temp Accommodation,Electricity,09-May-21,2122/02,LGE,N,
421838,EDF ENERGY,33.84,Public Conveniences,Electricity,09-May-21,2122/02,LGE,N,
421838,EDF ENERGY,101.35,Pure Gym & Adjacent Building,Electricity,09-May-21,2122/02,LGE,N,
421838,EDF ENERGY,3.86,Recycling Centre,Electricity,09-May-21,2122/02,LGE,N,
421838,EDF ENERGY,345.07,Sewage Treatment Works,Electricity,09-May-21,2122/02,LGE,N,
421838,EDF ENERGY,"12,839.91",Sheltered Accommodation,Electricity,09-May-21,2122/02,LGE,N,
421838,EDF ENERGY,130.22,Tacon Close Eye TDP,Electricity,09-May-21,2122/02,LGE,Y,50%
421838,EDF ENERGY,614.07,Temporary Accommodation,Electricity,09-May-21,2122/02,LGE,N,
421838,EDF ENERGY,"1,038.97",Tenancy Services,Electricity,09-May-21,2122/02,LGE,N,
421838,EDF ENERGY,"1,223.49",Wingfield Barns,Electricity,09-May-21,2122/02,LGE,N,
421726,ALLSTAR BUSINESS SOLUTIONS LTD,16.68,Housing Options,Plant & Vehicle Fuel,30-Apr-21,2122/02,SME,Y,50%
421726,ALLSTAR BUSINESS SOLUTIONS LTD,"9,209.44",Building Services,Plant & Vehicle Fuel,30-Apr-21,2122/02,SME,Y,50%
352260,DEBENHAM VILLAGE HALL & PLAYING FIELD TR,"20,220.00",CIL,Grants,12-May-21,2122/02,SME,N,
421785,HOXNE VILLAGE HALL,300,General Elections,Room Hire,27-May-21,2122/02,SME,N,
352096,WINGFIELD BARNS CIC,"9,023.10",CIL,Grants,05-May-21,2122/02,SME,N,
351999,SUFFOLK COUNTY COUNCIL,525,Organisational Devt,Contracted Services,29-Apr-21,2122/02,LGE,Y,50%
352091,SUFFOLK COUNTY COUNCIL,"1,291.58",ICT,Corporate Software,29-Apr-21,2122/02,LGE,Y,50%
352138,SUFFOLK COUNTY COUNCIL,"5,000.00",Jnt Waste Contract,Subscriptions,04-May-21,2122/02,LGE,N,
352156,SUFFOLK COUNTY COUNCIL,"34,898.40",Domestic Waste,MRF Disposal,06-May-21,2122/02,LGE,N,
352156,SUFFOLK COUNTY COUNCIL,"18,263.28",Garden Waste,Garden Waste Disposal,06-May-21,2122/02,LGE,N,
352258,SUFFOLK COUNTY COUNCIL,"38,053.10",Trade Waste,Trade Waste Disposal,11-May-21,2122/02,LGE,N,
352292,SUFFOLK COUNTY COUNCIL,665.42,General Rechargeable Works,Misc Supplies & Services Costs,12-May-21,2122/02,LGE,N,
352298,SUFFOLK COUNTY COUNCIL,"6,428.50",Climate Change and Sustainabil,Contributions to other Bodies,12-May-21,2122/02,LGE,N,
352435,SUFFOLK COUNTY COUNCIL,"12,000.00",Community Safety-General,Contributions & Donations,21-May-21,2122/02,LGE,Y,50%
352436,SUFFOLK COUNTY COUNCIL,"5,000.00",Community Safety-General,Contributions & Donations,20-May-21,2122/02,LGE,Y,50%
352437,SUFFOLK COUNTY COUNCIL,"2,500.00",Community Safety-General,Contributions & Donations,20-May-21,2122/02,LGE,Y,50%
352429,ROYAL MAIL,"5,410.12",General Elections,Postage,04-May-21,2122/02,LGE,N,
352503,ROYAL MAIL,"1,718.02",General Elections,Postage,11-May-21,2122/02,LGE,N,
351994,STOWMARKET TOWN COUNCIL,"9,804.00",Pld Maint/ Enhncmts-C Parks,Improvements,30-Apr-21,2122/02,SME,N,
351994,STOWMARKET TOWN COUNCIL,"21,045.00",Pld Maint/ Enhncmts-C Parks,Improvements,30-Apr-21,2122/02,SME,N,
352128,STOWMARKET TOWN COUNCIL,"11,796.92",Pld Maint/ Enhncmts-C Parks,Capital Budget,30-Apr-21,2122/02,SME,N,
352548,TELEFONICA UK LIMITED - O2,"2,144.61",ICT,Telephone Costs,27-May-21,2122/02,LGE,Y,50%
352567,SUFFOLK COUNTY COUNCIL - PENSIONS ACCT,"1,310.00",Ext Audit,Audit Fees,29-Mar-21,2122/02,LGE,N,
351943,KENNET EQUIPMENT LEASING,283.05,Creeting Rd Depot,Operating Lease Payments,26-Apr-21,2122/02,SME,Y,50%
352467,KENNET EQUIPMENT LEASING,283.05,Creeting Rd Depot,Operating Lease Payments,24-May-21,2122/02,SME,Y,50%
421743,GAZPROM ENERGY,15.01,"11 Market Place, Stowmarket",Gas,26-May-21,2122/02,SME,N,
421743,GAZPROM ENERGY,231.78,Creeting Rd Depot,Gas,26-May-21,2122/02,SME,Y,50%
421743,GAZPROM ENERGY,21.72,General/Supervision & Mgmt,Gas,26-May-21,2122/02,SME,N,
421743,GAZPROM ENERGY,2.54,Headquarters General,Gas,26-May-21,2122/02,SME,N,
421743,GAZPROM ENERGY,69.66,Pure Gym & Adjacent Building,Gas,26-May-21,2122/02,SME,N,
421743,GAZPROM ENERGY,"6,426.60",Sheltered Accommodation,Gas,26-May-21,2122/02,SME,N,
421743,GAZPROM ENERGY,482.27,Temporary Accommodation,Gas,26-May-21,2122/02,SME,N,
421743,GAZPROM ENERGY,299.83,Tenancy Services,Gas,26-May-21,2122/02,SME,N,
352539,PREMIER BODYWORKS,708.8,Street & Major Road Cleansing,Plant & Vehicle - Other costs,26-May-21,2122/02,SME,N,
421815,STOWUPLAND VILLAGE HALL,450,General Elections,Room Hire,27-May-21,2122/02,SME,N,
352095,ERNEST DOE & SONS LTD,"1,387.63",Open Spaces,Plant & Vehicle - Other costs,30-Apr-21,2122/02,LGE,N,
351895,WHYBROW PROPERTY SOLUTIONS LTD,"6,462.40",Council House Adaptions,Improvements,22-Apr-21,2122/02,SME,N,
351949,WHYBROW PROPERTY SOLUTIONS LTD,"2,543.38",Building Services,Repairs,19-Apr-21,2122/02,SME,N,
351998,WHYBROW PROPERTY SOLUTIONS LTD,"5,000.00",Building Services,Repairs,29-Apr-21,2122/02,SME,N,
352400,WHYBROW PROPERTY SOLUTIONS LTD,"8,266.37",Voids Maintenance,Repairs,04-Feb-21,2122/02,SME,N,
352400,WHYBROW PROPERTY SOLUTIONS LTD,850,Building Services,Repairs,04-Feb-21,2122/02,SME,N,
351997,ARMSTRONG YORK ASBESTOS ENVIRONMENTAL,"4,618.06",Asbestos Survey & Reinspection,Prof & Consultancy Fees,31-Mar-21,2122/02,SME,N,
352335,ARMSTRONG YORK ASBESTOS ENVIRONMENTAL,"4,768.86",Asbestos Survey & Reinspection,Prof & Consultancy Fees,30-Apr-21,2122/02,SME,N,
352209,STOWE VETERINARY GROUP,285.49,Animal Welfare Licensing,Prof & Consultancy Fees,11-May-21,2122/02,SME,N,
352187,COMMUNITY ACTION SUFFOLK,"1,536.00",Community Safety-General,Contributions & Donations,07-May-21,2122/02,SME,Y,50%
352226,BIBBY FACTORS SLOUGH LIMITED,"5,188.00",Mand Disabled Facilities Grant,Grants,10-May-21,2122/02,LGE,N,
352228,BIBBY FACTORS SLOUGH LIMITED,"5,445.00",Mand Disabled Facilities Grant,Grants,10-May-21,2122/02,LGE,N,
352246,FRIENDS OF THORNHAM WALKS,"5,395.40",CIL,Grants,12-May-21,2122/02,SME,N,
352427,LARAC LTD,445,Jnt Waste Contract,Subscriptions,20-May-21,2122/02,SME,Y,50%
421793,NEEDHAM MARKET COMMUNITY CENTRE,400,General Elections,Room Hire,27-May-21,2122/02,SME,N,
352040,OPUS PEOPLE SOLUTIONS LTD,"1,072.02",Current Liabilities,Agency Staff Holding A/C,29-Apr-21,2122/02,SME,N,
352190,OPUS PEOPLE SOLUTIONS LTD,"1,233.62",Current Liabilities,Agency Staff Holding A/C,06-May-21,2122/02,SME,N,
352343,OPUS PEOPLE SOLUTIONS LTD,"1,199.51",Current Liabilities,Agency Staff Holding A/C,12-May-21,2122/02,SME,N,
352468,OPUS PEOPLE SOLUTIONS LTD,"1,264.09",Current Liabilities,Agency Staff Holding A/C,20-May-21,2122/02,SME,N,
352071,CORNERSTONE BARRISTERS,500,CIL,Misc Legal Expenses,05-May-21,2122/02,SME,Y,50%
352076,CORNERSTONE BARRISTERS,"1,050.00",Devt Management - Apps,Legal ex - Crt challenge relat,29-Apr-21,2122/02,SME,N,
352411,VERTAS GROUP LTD,"1,440.00",Unapportionable Central OHs,Security Systems,30-Apr-21,2122/02,SME,N,
352440,VERTAS GROUP LTD,815.5,General Elections,Misc Supplies & Services Costs,21-May-21,2122/02,SME,Y,50%
352484,VERTAS GROUP LTD,"4,557.00",Stowmarket CAP,Operating Lease Payments,27-Apr-21,2122/02,SME,Y,50%
352484,VERTAS GROUP LTD,"3,307.00",Stowmarket CAP,Contracted Services,27-Apr-21,2122/02,SME,Y,50%
352486,VERTAS GROUP LTD,"41,000.00",Endeavour House - HQ,Operating Lease Payments,27-Apr-21,2122/02,SME,Y,50%
352486,VERTAS GROUP LTD,"42,500.00",Endeavour House - HQ,Contracted Services,27-Apr-21,2122/02,SME,Y,50%
352487,VERTAS GROUP LTD,"2,472.00",Endeavour House - HQ,Operating Lease Payments,12-Feb-21,2122/02,SME,Y,50%
352487,VERTAS GROUP LTD,"1,310.00",Endeavour House - HQ,Contracted Services,12-Feb-21,2122/02,SME,Y,50%
352327,MATT ALLMAN LTD T/A MOVEITCLEARITFINDIT,466.67,Homelessness Private Sector,Removal Expenses,28-Feb-21,2122/02,SME,N,
352130,BIRKETTS LLP,"1,212.00",Organisational Devt,Legal Expenses,29-Mar-21,2122/02,LGE,Y,50%
352131,BIRKETTS LLP,955.5,Organisational Devt,Legal Expenses,08-Mar-21,2122/02,LGE,Y,50%
352158,GALLAGHER CAR & VAN RENTALS LTD,510.71,Jnt Waste Contract,Refuse Contract,28-Apr-21,2122/02,LGE,N,
352175,GALLAGHER CAR & VAN RENTALS LTD,"1,548.10",Jnt Waste Contract,Refuse Contract,12-Apr-21,2122/02,LGE,N,
352268,GALLAGHER CAR & VAN RENTALS LTD,531.25,Jnt Waste Contract,Refuse Contract,12-May-21,2122/02,LGE,N,
352116,FORESOLUTIONS LTD,430,Open Spaces,Plant & Vehicle - Other costs,05-May-21,2122/02,SME,N,
352116,FORESOLUTIONS LTD,430,Street & Major Road Cleansing,Plant & Vehicle - Other costs,05-May-21,2122/02,SME,N,
351947,BACTON VILLAGE HALL,"3,388.09",Current Liabilities,Developer Contributions,28-Apr-21,2122/02,SME,N,
352483,MENDLESHAM MEDICAL GROUP,"22,080.96",CIL,Grants,24-May-21,2122/02,SME,N,
421786,LAXFIELD VILLAGE HALL,280,General Elections,Room Hire,27-May-21,2122/02,SME,N,
352213,PUBLIC SEWER SERVICES,"1,476.19",Building Services,Repairs,30-Apr-21,2122/02,SME,N,
352214,PUBLIC SEWER SERVICES,"2,721.26",Building Services,Repairs,30-Apr-21,2122/02,SME,N,
352363,ASPECT CONTRACTS LTD,"1,758.00",Asbestos,Improvements,14-May-21,2122/02,LGE,N,
421734,RIX PETROLEUM (EAST ANGLIA) LTD,"1,353.45",Open Spaces,Plant & Vehicle Fuel,07-May-21,2122/02,SME,N,
352203,D & C LIFTS LTD,"1,250.00",Sheltered Accommodation,Plant Maintenance,11-May-21,2122/02,SME,N,
352203,D & C LIFTS LTD,"1,250.00",Sheltered Accommodation,Annual Bldg Maint Contracts,11-May-21,2122/02,SME,N,
352203,D & C LIFTS LTD,"1,250.00",Sheltered Accommodation,Annual Bldg Maint Contracts,11-May-21,2122/02,SME,N,
352309,NORTHUMBRIAN WATER LTD,28.9,Cedars Park,Legionella Testing,14-May-21,2122/02,LGE,N,
352309,NORTHUMBRIAN WATER LTD,28.9,Creeting Rd Depot,Legionella Testing,14-May-21,2122/02,LGE,Y,50%
352309,NORTHUMBRIAN WATER LTD,34.15,Headquarters General,Legionella Testing,14-May-21,2122/02,LGE,N,
352309,NORTHUMBRIAN WATER LTD,28.9,Leisure Contract,Legionella Testing,14-May-21,2122/02,LGE,N,
352309,NORTHUMBRIAN WATER LTD,183.9,Open Spaces,Legionella Testing,14-May-21,2122/02,LGE,N,
352309,NORTHUMBRIAN WATER LTD,34.15,Other HRA Temp Accommodation,Legionella Testing,14-May-21,2122/02,LGE,N,
352309,NORTHUMBRIAN WATER LTD,68.3,Public Conveniences,Legionella Testing,14-May-21,2122/02,LGE,N,
352309,NORTHUMBRIAN WATER LTD,470.25,Responsive maintenance,Legionella Testing,14-May-21,2122/02,LGE,N,
352309,NORTHUMBRIAN WATER LTD,438.7,Sheltered Accommodation,Legionella Testing,14-May-21,2122/02,LGE,N,
352309,NORTHUMBRIAN WATER LTD,34.15,Temporary Accommodation,Legionella Testing,14-May-21,2122/02,LGE,N,
352309,NORTHUMBRIAN WATER LTD,63.05,Wingfield Barns,Legionella Testing,14-May-21,2122/02,LGE,N,
351662,GIPPING OCCUPATIONAL HEALTH LTD,323,Organisational Devt,Contracted Services,13-Apr-21,2122/02,SME,Y,50%
351861,GIPPING OCCUPATIONAL HEALTH LTD,588.65,Health & Safety,Contracted Services,16-Apr-21,2122/02,SME,Y,50%
352371,GIPPING OCCUPATIONAL HEALTH LTD,365,Health & Safety,Contracted Services,23-Apr-21,2122/02,SME,Y,50%
352458,PARK AVENUE RECRUITMENT LTD,"1,722.00",Devt Management - Apps,Prof & Consultancy Fees,17-May-21,2122/02,SME,Y,45.50%
352402,SHARPS REDMORE PARTNERSHIP LTD,"1,920.00",Devt Management - Appeals,Environmental  Consultancy,28-Feb-21,2122/02,SME,N,
352342,BRITISH RED CROSS,351,Organisational Devt,Training,16-Apr-21,2122/02,SME,Y,50%
421733,RFT REPAIRS LTD,"4,127.00",Temporary Accommodation,Improvements,29-Mar-21,2122/02,LGE,N,
351985,ICENI,"35,033.63",Land at Walsham le Willows,Prof & Consultancy Fees,29-Apr-21,2122/02,SME,N,
351986,ICENI,"3,300.17",Needham Market Middle School,Prof & Consultancy Fees,29-Apr-21,2122/02,SME,N,
351987,ICENI,"2,935.43","Green Road, Woolpit",Prof & Consultancy Fees,29-Apr-21,2122/02,SME,N,
351988,ICENI,"1,857.90","Back Hills, Botesdale, S106",Prof & Consultancy Fees,29-Apr-21,2122/02,SME,N,
352188,ICENI,"2,421.12",Eves Meadow Haughley S106,Prof & Consultancy Fees,10-May-21,2122/02,SME,N,
352042,SUFFOLK POWER EQUIPMENT,546.78,Open Spaces,"Equipment, Tools & Materials",03-May-21,2122/02,ST,N,
352043,SUFFOLK POWER EQUIPMENT,347.5,Open Spaces,"Equipment, Tools & Materials",03-May-21,2122/02,ST,N,
352044,SUFFOLK POWER EQUIPMENT,392.5,Open Spaces,"Equipment, Tools & Materials",03-May-21,2122/02,ST,N,
352045,SUFFOLK POWER EQUIPMENT,437.5,Open Spaces,"Equipment, Tools & Materials",03-May-21,2122/02,ST,N,
352046,SUFFOLK POWER EQUIPMENT,437.5,Open Spaces,"Equipment, Tools & Materials",03-May-21,2122/02,ST,N,
352047,SUFFOLK POWER EQUIPMENT,347.5,Open Spaces,"Equipment, Tools & Materials",03-May-21,2122/02,ST,N,
352048,SUFFOLK POWER EQUIPMENT,392.5,Open Spaces,"Equipment, Tools & Materials",03-May-21,2122/02,ST,N,
352049,SUFFOLK POWER EQUIPMENT,302.5,Open Spaces,"Equipment, Tools & Materials",03-May-21,2122/02,ST,N,
352050,SUFFOLK POWER EQUIPMENT,301.3,Open Spaces,"Equipment, Tools & Materials",03-May-21,2122/02,ST,N,
352052,SUFFOLK POWER EQUIPMENT,310.22,Open Spaces,"Equipment, Tools & Materials",03-May-21,2122/02,ST,N,
352053,SUFFOLK POWER EQUIPMENT,465.35,Open Spaces,"Equipment, Tools & Materials",03-May-21,2122/02,ST,N,
352057,SUFFOLK POWER EQUIPMENT,319.66,Open Spaces,Plant & Vehicle - Other costs,03-May-21,2122/02,ST,N,
352059,SUFFOLK POWER EQUIPMENT,311.68,Open Spaces,Plant & Vehicle - Other costs,03-May-21,2122/02,ST,N,
352010,COOKS BLIND AND SHUTTERS LTD,342,Creeting Rd Depot,Grounds & Site Maintenance,30-Apr-21,2122/02,SME,Y,50%
352063,OAKPARK SECURITY SYSTEMS LTD,"8,700.00",Temporary Accommodation,Contracted Services,30-Apr-21,2122/02,LGE,N,
352064,OAKPARK SECURITY SYSTEMS LTD,"2,810.00",General/Supervision & Mgmt,Contracted Services,30-Apr-21,2122/02,LGE,N,
421736,FLAGSHIP HOUSING GROUP LTD-RENT ACCOUNT,370.02,Homeless Prevention Fund,Misc Supplies & Services Costs,12-May-21,2122/02,LGE,N,
352206,WEST SUFFOLK COUNCIL,"15,000.00",Management Team,Subscriptions,11-May-21,2122/02,LGE,N,
352150,HUGHES TRADE,327.91,Temporary Accommodation,Furniture,29-Apr-21,2122/02,LGE,N,
352084,WASHCO LTD,467,Sheltered Accommodation,"Equipment, Tools & Materials",01-May-21,2122/02,SME,N,
351921,ANGLIA COMMERCIAL FLOORING LTD,321.03,Building Services,Repairs,27-Apr-20,2122/02,SME,N,
352344,ANGLIA COMMERCIAL FLOORING LTD,410.32,Building Services,Repairs,17-May-21,2122/02,SME,N,
352345,ANGLIA COMMERCIAL FLOORING LTD,565.02,Building Services,Repairs,17-May-21,2122/02,SME,N,
352346,ANGLIA COMMERCIAL FLOORING LTD,269.13,Building Services,Repairs,17-May-21,2122/02,SME,N,
352347,ANGLIA COMMERCIAL FLOORING LTD,425.12,Building Services,Repairs,17-May-21,2122/02,SME,N,
352348,ANGLIA COMMERCIAL FLOORING LTD,513.87,Building Services,Repairs,17-May-21,2122/02,SME,N,
352349,ANGLIA COMMERCIAL FLOORING LTD,439.91,Building Services,Repairs,17-May-21,2122/02,SME,N,
352351,ANGLIA COMMERCIAL FLOORING LTD,487.97,Building Services,Repairs,17-May-21,2122/02,SME,N,
352352,ANGLIA COMMERCIAL FLOORING LTD,485.4,Building Services,Repairs,17-May-21,2122/02,SME,N,
352354,ANGLIA COMMERCIAL FLOORING LTD,382.02,Building Services,Repairs,17-May-21,2122/02,SME,N,
352355,ANGLIA COMMERCIAL FLOORING LTD,556.03,Building Services,Repairs,17-May-21,2122/02,SME,N,
352357,ANGLIA COMMERCIAL FLOORING LTD,846.16,Building Services,Repairs,17-May-21,2122/02,SME,N,
352018,PARKYNS LETTINGS BURY ST EDMUNDS,650,Guaranteed Rent Scheme,Rent Payable,05-May-21,2122/02,SME,N,
352115,CROSS MEDIA PRINT& DIGITAL SOLUTIONS LTD,561.04,Business Cont/Emergency Plan,Property Servicing,30-Apr-21,2122/02,SME,Y,50%
352160,CROSS MEDIA PRINT& DIGITAL SOLUTIONS LTD,"1,231.04",Business Cont/Emergency Plan,Property Servicing,23-Mar-21,2122/02,SME,Y,50%
421795,OCCOLD VILLAGE HALL,300,General Elections,Room Hire,27-May-21,2122/02,SME,N,
421809,STOWMARKET (SCF3) REDWOODS OLD LIBRARY,261.6,General Elections,Room Hire,27-May-21,2122/02,SME,N,
421814,STOWMARKET (SST3) SUFFOLK FOOTBALL ASSN,325,General Elections,Room Hire,27-May-21,2122/02,SME,N,
352444,MID SUFFOLK GROWTH LTD,"48,127.95",Regen Fund - HQ Sites,Prof & Consultancy Fees,21-May-21,2122/02,SME,N,
421759,THE CODDENHAM CENTRE,382.5,General Elections,Room Hire,27-May-21,2122/02,SME,N,
352397,LAND USE CONSULTANTS LTD,"3,945.38",Devt Management - Apps,Environmental  Consultancy,18-May-21,2122/02,SME,N,
352398,LAND USE CONSULTANTS LTD,"8,615.66",Devt Management - Apps,Environmental  Consultancy,27-Apr-21,2122/02,SME,N,
352236,BUCHER MUNICIPAL LTD,730.2,Street & Major Road Cleansing,Plant & Vehicle - Other costs,15-Apr-21,2122/02,LGE,N,
352125,GIPPING CONSTRUCTION LTD,"18,784.91",Regen Fund - HQ Sites,Prof & Consultancy Fees,30-Apr-21,2122/02,SME,N,
352125,GIPPING CONSTRUCTION LTD,"245,928.09",Needham Market Middle School,Prof & Consultancy Fees,30-Apr-21,2122/02,SME,N,
352413,PRIVATE LANDLORD,786.5,Rent Deposit Scheme,Rent Payable,20-May-21,2122/02,ST,N,
352162,MRS SHELLEY SPALL T/A CLEANING COVERED,448,Business Cont/Emergency Plan,General Cleaning,05-May-21,2122/02,SME,N,
352367,MRS SHELLEY SPALL T/A CLEANING COVERED,448,Business Cont/Emergency Plan,General Cleaning,18-May-21,2122/02,SME,N,
352368,MRS SHELLEY SPALL T/A CLEANING COVERED,448,Business Cont/Emergency Plan,General Cleaning,18-May-21,2122/02,SME,N,
352200,THE FORD MOTOR COMPANY LIMITED,"24,338.65",Vehicle and Plant Renewals,Plant & Vehicle - Purchase,06-May-21,2122/02,SME,N,
352201,THE FORD MOTOR COMPANY LIMITED,"24,338.65",Vehicle and Plant Renewals,Plant & Vehicle - Purchase,06-May-21,2122/02,SME,N,
352401,STOWMARKET DEMENTIA ACTION ALLIANCE,"1,000.00",Cost of Democracy,Chairman's Expenses,19-May-21,2122/02,SME,N,
352259,PRIVATE LANDLORD,786.5,Guaranteed Rent Scheme,Rent Payable,12-May-21,2122/02,ST,N,
352136,COUNTRYSTYLE RECYCLING LTD,"3,994.67",Bring Sites,Contracted Services,31-Mar-21,2122/02,SME,N,
352334,COUNTRYSTYLE RECYCLING LTD,"3,133.84",Bring Sites,Contracted Services,30-Apr-21,2122/02,SME,N,
352392,TEMPLE LETTINGS,650,Guaranteed Rent Scheme,Rent Payable,19-May-21,2122/02,SME,N,
352037,DGL QUALITY MANAGEMENT LTD,870.76,Needham Market Middle School,Prof & Consultancy Fees,30-Apr-21,2122/02,SME,N,
352092,RSK LAND & DEVELOPMENT ENGINEERING LTD,"6,000.00",Strategic Assets,Prof & Consultancy Fees,26-Apr-21,2122/02,LGE,N,
352093,RSK LAND & DEVELOPMENT ENGINEERING LTD,"2,840.00",Strategic Assets,Prof & Consultancy Fees,26-Apr-21,2122/02,LGE,N,
352423,RSK LAND & DEVELOPMENT ENGINEERING LTD,"1,450.00",Strategic Assets,Prof & Consultancy Fees,18-May-21,2122/02,LGE,N,
351677,CAMBRIDGESHIRE ACRE,"3,000.00",Community Housing Fund,Grants,09-Apr-21,2122/02,SME,Y,50%
352034,PERMISERV LIMITED,608,Jnt Waste Contract,"Equipment, Tools & Materials",30-Apr-21,2122/02,SME,Y,50%
352035,PERMISERV LIMITED,681,Jnt Waste Contract,"Equipment, Tools & Materials",30-Apr-21,2122/02,SME,Y,50%
352301,HAVEBURY HOUSING PARTNERSHIP (RENTS),842.45,Tenancy Services,Other Service Charges,12-May-21,2122/02,SME,N,
352338,JAMES BLAKE ASSOCIATES LTD,"1,421.00",Devt Management - Apps,Landscape Consultancy,07-May-21,2122/02,SME,N,
352339,JAMES BLAKE ASSOCIATES LTD,750,Devt Management - Apps,Ecology Consultancy,30-Apr-21,2122/02,SME,N,
352234,A LANSDALE CHIMNEY SPECIALIST,885,Renovation/Home Repair Grants,Grants,11-May-21,2122/02,ST,N,
352482,ARTISAN PPS LTD,"11,588.00",Devt Management - Appeals,Costs allowed to appellant,21-May-21,2122/02,SME,N,
352474,G4S CASH SOLUTIONS LTD,-446.16,Financial Servs,Contracted Services,30-Apr-21,2122/02,LGE,N,
352475,G4S CASH SOLUTIONS LTD,-213,Financial Servs,Contracted Services,30-Apr-21,2122/02,LGE,N,
835,SPORTS & LEISURE MANAGEMENT LTD,"-192,594.00",Leisure Contract,Contributions to other Bodies,12-May-21,2122/02,LGE,N,
837,ROYAL MAIL,"-1,718.02",General Elections,Postage,26-May-21,2122/02,LGE,N,
352471,ERNEST DOE & SONS LTD,-274.17,Open Spaces,"Equipment, Tools & Materials",15-Apr-21,2122/02,LGE,N,
352472,ERNEST DOE & SONS LTD,-747.51,Open Spaces,"Equipment, Tools & Materials",15-Apr-21,2122/02,LGE,N,
829,CORNERSTONE BARRISTERS,-500,CIL,Misc Legal Expenses,06-May-21,2122/02,SME,Y,50%
352442,BRITISH RED CROSS,-117,Organisational Devt,Training,21-May-21,2122/02,SME,Y,50%
421732,RFT REPAIRS LTD,"-4,127.00",Temporary Accommodation,Improvements,29-Mar-21,2122/02,LGE,N,
352453,ACADEMY BUILDING CONTRACTS LTD,"1,724.31",Building Services,Repairs,21-May-21,2122/03,SME,N,
352759,ACADEMY BUILDING CONTRACTS LTD,"2,327.62",Building Services,Repairs,05-Jun-21,2122/03,SME,N,
352841,ACADEMY BUILDING CONTRACTS LTD,"1,212.10",Building Services,Repairs,10-Jun-21,2122/03,SME,N,
352842,ACADEMY BUILDING CONTRACTS LTD,"1,692.35",Building Services,Repairs,10-Jun-21,2122/03,SME,N,
352843,ACADEMY BUILDING CONTRACTS LTD,481.05,Building Services,Repairs,10-Jun-21,2122/03,SME,N,
352933,ADVANCED CONTROLS & MANAGEMENT SYSTEMS L,800,Central Heating,Improvements,08-Jun-21,2122/03,SME,N,
352933,ADVANCED CONTROLS & MANAGEMENT SYSTEMS L,"3,400.00",Central Heating,Improvements,08-Jun-21,2122/03,SME,N,
352536,ANGLIAN WATER,627.15,Water Sampling,Sampling & Analysis,25-May-21,2122/03,LGE,N,
352679,ANGLIAN WATER,386.08,Tenancy Services,Water Rates - Metered,17-May-21,2122/03,LGE,N,
353147,ANGLIAN WATER,454.98,Other HRA Temp Accommodation,Water Rates - Metered,15-Jun-21,2122/03,LGE,N,
352576,APSE,410,Food & Safety (General),Agency Staff,20-May-21,2122/03,LGE,Y,50%
352576,APSE,410,Animal Welfare Licensing,Agency Staff,20-May-21,2122/03,LGE,Y,50%
353019,APSE,"2,870.00",Food & Safety (General),Agency Staff,21-Jun-21,2122/03,LGE,Y,50%
353019,APSE,"2,870.00",Animal Welfare Licensing,Agency Staff,21-Jun-21,2122/03,LGE,Y,50%
352629,BLUE FLAME (COLCHESTER) LTD,"26,081.79",Planned Maint - Heating,Property Servicing,26-May-21,2122/03,SME,N,
421843,BLUE FLAME (COLCHESTER) LTD,"19,305.10",Planned Maint - Heating,Property Servicing,02-Jun-21,2122/03,SME,N,
421843,BLUE FLAME (COLCHESTER) LTD,494.6,Smoke Alarms (Bbgh Standard),Improvements,02-Jun-21,2122/03,SME,N,
421843,BLUE FLAME (COLCHESTER) LTD,"9,161.18",Central Heating,Improvements,02-Jun-21,2122/03,SME,N,
421843,BLUE FLAME (COLCHESTER) LTD,32.83,PV Panels,Repairs,02-Jun-21,2122/03,SME,N,
421843,BLUE FLAME (COLCHESTER) LTD,"7,547.57",PV Panels,Contracted Services,02-Jun-21,2122/03,SME,N,
421848,BLUE FLAME (COLCHESTER) LTD,"6,961.71",Planned Maint - Heating,Property Servicing,09-Jun-21,2122/03,SME,N,
421848,BLUE FLAME (COLCHESTER) LTD,283.8,PV Panels,Contracted Services,09-Jun-21,2122/03,SME,N,
421852,BLUE FLAME (COLCHESTER) LTD,"27,724.11",Planned Maint - Heating,Property Servicing,16-Jun-21,2122/03,SME,N,
421852,BLUE FLAME (COLCHESTER) LTD,431.16,Rewiring,Improvements,16-Jun-21,2122/03,SME,N,
421852,BLUE FLAME (COLCHESTER) LTD,510.84,PV Panels,Contracted Services,16-Jun-21,2122/03,SME,N,
421856,BLUE FLAME (COLCHESTER) LTD,73.2,Disabled Facilities (Revenue),Repairs,23-Jun-21,2122/03,SME,N,
421856,BLUE FLAME (COLCHESTER) LTD,"12,598.01",Planned Maint - Heating,Property Servicing,23-Jun-21,2122/03,SME,N,
421856,BLUE FLAME (COLCHESTER) LTD,"2,592.08",PV Panels,Contracted Services,23-Jun-21,2122/03,SME,N,
421856,BLUE FLAME (COLCHESTER) LTD,483.13,Smoke Alarms (Bbgh Standard),Improvements,23-Jun-21,2122/03,SME,N,
421867,BLUE FLAME (COLCHESTER) LTD,"9,546.11",Planned Maint - Heating,Property Servicing,30-Jun-21,2122/03,SME,N,
421867,BLUE FLAME (COLCHESTER) LTD,186.31,Smoke Alarms (Bbgh Standard),Improvements,30-Jun-21,2122/03,SME,N,
421867,BLUE FLAME (COLCHESTER) LTD,"1,446.51",PV Panels,Contracted Services,30-Jun-21,2122/03,SME,N,
352745,BOLTON BROTHERS LTD,330.61,Bring Sites,Contracted Services,31-May-21,2122/03,SME,N,
352159,BSI,633,Bldg Regs Chargeable Serv,Professional Subs (Staff),01-Mar-21,2122/03,LGE,N,
352903,CAPITA BUSINESS SERVICES LTD,"1,600.00",Building Services,Repairs,14-Jun-21,2122/03,LGE,Y,50%
353066,AQUASAMPLERS,375,Water Sampling,Sampling & Analysis,31-May-21,2122/03,SME,N,
352524,CLARKE FENCING LTD,400.99,Open Spaces,"Equipment, Tools & Materials",12-Apr-21,2122/03,SME,N,
352529,CLARKE FENCING LTD,839.68,Open Spaces,"Equipment, Tools & Materials",19-Apr-21,2122/03,SME,N,
352530,CLARKE FENCING LTD,298.43,Open Spaces,"Equipment, Tools & Materials",19-Apr-21,2122/03,SME,N,
352531,CLARKE FENCING LTD,"1,175.92",Open Spaces,"Equipment, Tools & Materials",19-Apr-21,2122/03,SME,N,
352532,CLARKE FENCING LTD,772.43,Open Spaces,"Equipment, Tools & Materials",19-Apr-21,2122/03,SME,N,
352533,CLARKE FENCING LTD,455.78,Open Spaces,"Equipment, Tools & Materials",30-Apr-21,2122/03,SME,N,
352535,CLARKE FENCING LTD,739.62,Open Spaces,"Equipment, Tools & Materials",26-May-21,2122/03,SME,N,
352517,CLARKES OF WALSHAM LTD,609.97,Building Services,"Equipment, Tools & Materials",21-May-21,2122/03,SME,N,
352905,CLC CONTRACTORS LTD,"7,795.13",Planned Maint - Ext Painting,Major Contracts,11-Jun-21,2122/03,SME,N,
352432,D W ADAMS LTD,"4,297.00",Building Services,Repairs,20-May-21,2122/03,SME,N,
352496,D W ADAMS LTD,"3,338.40",Council House Adaptions,Improvements,24-May-21,2122/03,SME,N,
352765,D W ADAMS LTD,"3,094.00",Building Services,Repairs,07-Jun-21,2122/03,SME,N,
352902,D W ADAMS LTD,"1,290.00",Building Services,Repairs,15-Jun-21,2122/03,SME,N,
352839,DANCE EAST,"2,925.00",Grants & Contrbns,Grants,10-Jun-21,2122/03,SME,N,
352832,DISTRICT COUNCILS' NETWORK,379,Cost of Democracy,Conference Expenses,10-Jun-21,2122/03,LGE,N,
352901,DISTRICT COUNCILS' NETWORK,379,Management Team,Conference Expenses,15-Jun-21,2122/03,LGE,Y,50%
352819,DMA HEALTH AND SAFETY LTD,316,Strategic Assets,Prof & Consultancy Fees,09-Jun-21,2122/03,SME,N,
352891,DOLPHIN STAIRLIFTS (EAST ANGLIA) LTD,"1,540.00",Mand Disabled Facilities Grant,Grants,14-Jun-21,2122/03,SME,N,
352789,DS MEAD LTD,"1,300.00",Renovation/Home Repair Grants,Grants,09-Jun-21,2122/03,SME,N,
352595,EAST ANGLIA CLEANING SERVICES LTD,"1,374.49",Jnt Waste Contract,General Cleaning,27-May-21,2122/03,SME,Y,50%
352596,EAST ANGLIA CLEANING SERVICES LTD,451.47,Open Spaces,General Cleaning,27-May-21,2122/03,SME,N,
352545,CIVICA ELECTION SERVICES,"27,498.26",General Elections,Commercial Printing,09-Apr-21,2122/03,LGE,N,
352922,ENGLISH SECURITY,173.51,Sheltered Accommodation,Repairs,11-May-21,2122/03,SME,N,
352922,ENGLISH SECURITY,217.25,Wingfield Barns,Fire Prevention,11-May-21,2122/03,SME,N,
352922,ENGLISH SECURITY,83.69,Responsive maintenance,Repairs,11-May-21,2122/03,SME,N,
352561,FELLBRIDGE BUILDING SERVICES,"5,306.52",Building Services,Repairs,27-May-21,2122/03,SME,N,
352562,FELLBRIDGE BUILDING SERVICES,"19,265.09",Building Services,Repairs,27-May-21,2122/03,SME,N,
352644,FELLBRIDGE BUILDING SERVICES,"1,073.24",Building Services,Repairs,01-Jun-21,2122/03,SME,N,
352834,FELLBRIDGE BUILDING SERVICES,"9,920.48",Building Services,Repairs,10-Jun-21,2122/03,SME,N,
352835,FELLBRIDGE BUILDING SERVICES,"7,488.57",Building Services,Repairs,10-Jun-21,2122/03,SME,N,
352880,FELLBRIDGE BUILDING SERVICES,"7,291.60",Building Services,Repairs,14-Jun-21,2122/03,SME,N,
352888,FELLBRIDGE BUILDING SERVICES,362.85,Building Services,Repairs,14-Jun-21,2122/03,SME,N,
352961,FELLBRIDGE BUILDING SERVICES,"5,848.48",Building Services,Repairs,17-Jun-21,2122/03,SME,N,
352558,FORE-MOST GARAGE DOORS LTD,651.06,Building Services,Repairs,31-May-21,2122/03,SME,N,
352646,GB ADAPTIONS LTD,"7,483.00",Mand Disabled Facilities Grant,Grants,02-Jun-21,2122/03,SME,N,
352663,G4S CASH SOLUTIONS LTD,457.6,Financial Servs,Contracted Services,02-Apr-21,2122/03,LGE,N,
352664,G4S CASH SOLUTIONS LTD,640.64,Financial Servs,Contracted Services,02-Apr-21,2122/03,LGE,N,
352766,GUDGEONS PRENTICE,"2,402.91",GF Misc Capital Receipts,Capital Income Contributions,07-Jun-21,2122/03,SME,N,
352062,HQN LTD,720,Tenancy Services,Subscriptions,04-May-21,2122/03,SME,Y,50%
352638,J NAREY & SONS,400.69,Open Spaces,Horticultural Purchases,21-May-21,2122/03,SME,N,
352855,JOHN PEEL CENTRE FOR CREATIVE ARTS,"8,000.00",Grants & Contrbns,Grants,10-Jun-21,2122/03,SME,N,
352592,KEYWAYS THE LOCKSMITHS LTD,"2,039.72",Sheltered Accommodation,Repairs,28-May-21,2122/03,SME,N,
352318,M & H CIVIL ENGINEERING LTD,610.6,Building Services,Repairs,13-May-21,2122/03,SME,N,
352690,M & H CIVIL ENGINEERING LTD,492.5,Building Services,Repairs,03-Jun-21,2122/03,SME,N,
352829,M & H CIVIL ENGINEERING LTD,464.5,Building Services,Repairs,10-Jun-21,2122/03,SME,N,
352809,MARRIOTT HOLDINGS LTD,"1,875.00",C Parks-Stowmarket Lorry Park,Rent Payable,09-Jun-21,2122/03,SME,N,
351526,MB TREES (EAST ANGLIA) LTD,"1,485.00",Tenancy Services,Grounds & Site Maintenance,06-Apr-21,2122/03,SME,N,
351925,MB TREES (EAST ANGLIA) LTD,820,Tenancy Services,Tree felling/maintenance,27-Apr-21,2122/03,SME,N,
352959,MB TREES (EAST ANGLIA) LTD,"1,420.00",Public Tree Programme,Tree felling/maintenance,17-Jun-21,2122/03,SME,N,
352960,MB TREES (EAST ANGLIA) LTD,720,Tenancy Services,Tree felling/maintenance,17-Jun-21,2122/03,SME,N,
353030,MB TREES (EAST ANGLIA) LTD,"1,350.00",Public Tree Programme,Tree felling/maintenance,22-Jun-21,2122/03,SME,N,
353035,MB TREES (EAST ANGLIA) LTD,380,Amenity Areas,Tree felling/maintenance,22-Jun-21,2122/03,SME,N,
353084,MB TREES (EAST ANGLIA) LTD,480,Amenity Areas,Tree felling/maintenance,24-Jun-21,2122/03,SME,N,
353085,MB TREES (EAST ANGLIA) LTD,"1,460.05",Amenity Areas,Tree felling/maintenance,24-Jun-21,2122/03,SME,N,
352566,MIXBROW LTD,"3,913.55",Council House Adaptions,Improvements,25-May-21,2122/03,SME,N,
352691,NORFOLK COUNTY COUNCIL,720,Open Spaces,Misc Supplies & Services Costs,21-May-21,2122/03,LGE,N,
352430,PRO-FLAT SPECIALIST SERVICES LTD,"2,245.00",Building Services,Repairs,26-Apr-21,2122/03,SME,N,
352788,PRO-FLAT SPECIALIST SERVICES LTD,"4,080.00",Building Services,Repairs,07-Jun-21,2122/03,SME,N,
352760,R H ENVIRONMENTAL LTD,375,Organisational Devt,Health & Safety Training,28-May-21,2122/03,LGE,Y,50%
352516,REID PLUMBING & HEATING CONTRACTORS LTD,"4,694.72",Central Heating,Major Contracts,26-May-21,2122/03,SME,N,
352659,REID PLUMBING & HEATING CONTRACTORS LTD,"8,761.67",Central Heating,Major Contracts,02-Jun-21,2122/03,SME,N,
352688,REID PLUMBING & HEATING CONTRACTORS LTD,"9,241.59",Central Heating,Major Contracts,03-Jun-21,2122/03,SME,N,
352820,REID PLUMBING & HEATING CONTRACTORS LTD,"9,307.13",Central Heating,Major Contracts,09-Jun-21,2122/03,SME,N,
352945,REID PLUMBING & HEATING CONTRACTORS LTD,"17,194.49",Central Heating,Major Contracts,16-Jun-21,2122/03,SME,N,
352433,S SACKER (CLAYDON) LTD,514.47,Building Services,Waste Disposal,18-May-21,2122/03,SME,Y,50%
352560,S SACKER (CLAYDON) LTD,396.76,Building Services,Waste Disposal,25-May-21,2122/03,SME,Y,50%
352824,S SACKER (CLAYDON) LTD,477.15,Building Services,Waste Disposal,02-Jun-21,2122/03,SME,Y,50%
352825,S SACKER (CLAYDON) LTD,274.39,Building Services,Waste Disposal,04-Jun-21,2122/03,SME,Y,50%
352951,S SACKER (CLAYDON) LTD,543.18,Building Services,Waste Disposal,12-Jun-21,2122/03,SME,Y,50%
352971,S SACKER (CLAYDON) LTD,520.21,Building Services,Waste Disposal,16-Jun-21,2122/03,SME,Y,50%
352931,SEAGER HOME SOLUTIONS,640.71,Building Services,Repairs,14-Jun-21,2122/03,SME,N,
352980,SEAGER HOME SOLUTIONS,748.84,Building Services,Repairs,14-Jun-21,2122/03,SME,N,
352591,SOLUTIONS ON SECURITY SERVICES,811,Sheltered Accommodation,Repairs,27-May-21,2122/03,SME,N,
352739,SPALDINGS LTD,567,RHSSF,"Equipment, Tools & Materials",03-Jun-21,2122/03,SME,N,
352999,SUFFOLK TREE SERVICES LTD,"2,000.00",Neighbourhood Services,Grounds & Site Maintenance,21-Jun-21,2122/03,SME,N,
352575,TDT ENTERPRISES LTD,293,Sheltered Accommodation,Repairs,27-May-21,2122/03,SME,N,
352793,THOMPSON COOPER LTD,912.5,Street & Major Road Cleansing,Bins,07-Jun-21,2122/03,SME,N,
353095,TOMLINSON GROUNDCARE,347.25,Open Spaces,Plant & Vehicle - Other costs,24-Jun-21,2122/03,SME,N,
352441,TRUCKEAST LTD,"1,013.69",Street & Major Road Cleansing,Plant & Vehicle - Other costs,21-May-21,2122/03,LGE,N,
352649,VODAFONE CORPORATE LTD,"1,641.43",ICT,Telephone Costs,21-Apr-21,2122/03,LGE,Y,50%
352415,WINDIMAN LTD,395.02,Building Services,Repairs,20-May-21,2122/03,SME,N,
352419,WINDIMAN LTD,735,Building Services,Repairs,20-May-21,2122/03,SME,N,
352577,WINDIMAN LTD,289.16,Building Services,Repairs,27-May-21,2122/03,SME,N,
352578,WINDIMAN LTD,705.81,Building Services,Repairs,27-May-21,2122/03,SME,N,
352889,WINDIMAN LTD,610,Building Services,Repairs,09-Jun-21,2122/03,SME,N,
352965,WINDIMAN LTD,298.23,Building Services,Repairs,17-Jun-21,2122/03,SME,N,
352565,ARCHANT COMMUNITY MEDIA LTD,"1,225.70",Devt Management - Apps,Advertising&mkting (non-staff),22-May-21,2122/03,LGE,N,
352627,ARCHANT COMMUNITY MEDIA LTD,"1,015.65",Devt Management - Apps,Advertising&mkting (non-staff),31-May-21,2122/03,LGE,N,
352778,ARCHANT COMMUNITY MEDIA LTD,840.48,Devt Management - Apps,Advertising&mkting (non-staff),05-Jun-21,2122/03,LGE,N,
352900,ARCHANT COMMUNITY MEDIA LTD,"1,155.66",Devt Management - Apps,Advertising&mkting (non-staff),12-Jun-21,2122/03,LGE,N,
353020,ARCHANT COMMUNITY MEDIA LTD,770.44,Devt Management - Apps,Advertising&mkting (non-staff),19-Jun-21,2122/03,LGE,N,
352645,SPORTS & LEISURE MANAGEMENT LTD,"25,000.00",Business Cont/Emergency Plan,Contributions to other Bodies,02-Jun-21,2122/03,LGE,N,
352897,IPSWICH BOROUGH COUNCIL,"29,559.65",Civil Parking Enforcement,Contributions to other Bodies,11-Jun-21,2122/03,LGE,Y,55%
352994,IPSWICH BOROUGH COUNCIL,"6,517.71",Shared Revenues Partnership,Contributions to other Bodies,15-Jun-21,2122/03,LGE,N,
352995,IPSWICH BOROUGH COUNCIL,"8,896.55",Shared Revenues Partnership,Contributions to other Bodies,15-Jun-21,2122/03,LGE,N,
352996,IPSWICH BOROUGH COUNCIL,"22,128.84",Shared Revenues Partnership,Contributions to other Bodies,15-Jun-21,2122/03,LGE,N,
352998,IPSWICH BOROUGH COUNCIL,447.85,Central Printing,Commercial Printing,14-Jun-21,2122/03,LGE,N,
352998,IPSWICH BOROUGH COUNCIL,831.15,Communications,Commercial Printing,14-Jun-21,2122/03,LGE,Y,50%
352827,SERCO LTD,"292,516.56",Domestic Waste,Refuse Contract,25-May-21,2122/03,LGE,Y,48%
352827,SERCO LTD,"77,664.58",Garden Waste,Refuse Contract,25-May-21,2122/03,LGE,Y,48%
352827,SERCO LTD,"22,179.86",Trade Waste,Refuse Contract,25-May-21,2122/03,LGE,Y,60%
352828,SERCO LTD,"8,754.00",Domestic Waste,Refuse Contract,25-May-21,2122/03,LGE,Y,50%
353029,SERCO LTD,"292,516.56",Domestic Waste,Refuse Contract,21-Jun-21,2122/03,LGE,Y,48%
353029,SERCO LTD,"77,664.58",Garden Waste,Refuse Contract,21-Jun-21,2122/03,LGE,Y,48%
353029,SERCO LTD,"22,179.86",Trade Waste,Refuse Contract,21-Jun-21,2122/03,LGE,Y,60%
352434,TRAVIS PERKINS TRADING CO LTD,482.14,Building Services,"Equipment, Tools & Materials",19-May-21,2122/03,LGE,Y,50%
352665,TRAVIS PERKINS TRADING CO LTD,225,Building Services,"Equipment, Tools & Materials",26-May-21,2122/03,LGE,Y,50%
352665,TRAVIS PERKINS TRADING CO LTD,34.2,Building Services,Protective clothing,26-May-21,2122/03,LGE,Y,50%
352666,TRAVIS PERKINS TRADING CO LTD,300,Building Services,"Equipment, Tools & Materials",28-May-21,2122/03,LGE,Y,50%
352779,TRAVIS PERKINS TRADING CO LTD,"35,159.60",Building Services,"Equipment, Tools & Materials",01-Jun-21,2122/03,LGE,Y,47%
352807,TRAVIS PERKINS TRADING CO LTD,391.8,Building Services,"Equipment, Tools & Materials",04-Jun-21,2122/03,LGE,Y,50%
352808,TRAVIS PERKINS TRADING CO LTD,482.14,Building Services,"Equipment, Tools & Materials",04-Jun-21,2122/03,LGE,Y,50%
421866,EDF ENERGY,947.36,"11 Market Place, Stowmarket",Electricity,09-Jun-21,2122/03,LGE,N,
421866,EDF ENERGY,312.9,C Parks General,Electricity,09-Jun-21,2122/03,LGE,N,
421866,EDF ENERGY,203.01,Climate Change and Sustainabil,Electricity,09-Jun-21,2122/03,LGE,N,
421866,EDF ENERGY,470.2,Creeting Rd Depot,Electricity,09-Jun-21,2122/03,LGE,Y,50%
421866,EDF ENERGY,17.16,General/Supervision & Mgmt,Electricity,09-Jun-21,2122/03,LGE,N,
421866,EDF ENERGY,252.06,Headquarters General,Electricity,09-Jun-21,2122/03,LGE,N,
421866,EDF ENERGY,"14,047.32",Leisure Contract,Electricity,09-Jun-21,2122/03,LGE,N,
421866,EDF ENERGY,217.66,Open Spaces,Electricity,09-Jun-21,2122/03,LGE,N,
421866,EDF ENERGY,360.42,Other HRA Temp Accommodation,Electricity,09-Jun-21,2122/03,LGE,N,
421866,EDF ENERGY,31.77,Public Conveniences,Electricity,09-Jun-21,2122/03,LGE,N,
421866,EDF ENERGY,469.18,Pure Gym & Adjacent Building,Electricity,09-Jun-21,2122/03,LGE,N,
421866,EDF ENERGY,4.56,Recycling Centre,Electricity,09-Jun-21,2122/03,LGE,N,
421866,EDF ENERGY,330.71,Sewage Treatment Works,Electricity,09-Jun-21,2122/03,LGE,N,
421866,EDF ENERGY,"11,236.95",Sheltered Accommodation,Electricity,09-Jun-21,2122/03,LGE,N,
421866,EDF ENERGY,97.58,Tacon Close Eye TDP,Electricity,09-Jun-21,2122/03,LGE,Y,50%
421866,EDF ENERGY,442.91,Temporary Accommodation,Electricity,09-Jun-21,2122/03,LGE,N,
421866,EDF ENERGY,"1,036.42",Tenancy Services,Electricity,09-Jun-21,2122/03,LGE,N,
421866,EDF ENERGY,"1,061.52",Wingfield Barns,Electricity,09-Jun-21,2122/03,LGE,N,
352865,RURAL COFFEE CARAVAN INFORMATION PROJECT,"10,000.00",Grants & Contrbns,Grants,10-Jun-21,2122/03,SME,N,
352549,ERNST & YOUNG LLP,"8,360.00",Ext Audit,Audit Fees,07-May-21,2122/03,LGE,N,
421841,GPC BARCLAYS,"9,279.59",Current Assets,Barclaycard Control,14-May-21,2122/03,LGE,Y,37%
421851,GPC BARCLAYS,"6,024.58",Current Assets,Barclaycard Control,14-Jun-21,2122/03,LGE,Y,16%
421842,ALLSTAR BUSINESS SOLUTIONS LTD,73.01,Housing Options,Plant & Vehicle Fuel,31-May-21,2122/03,SME,Y,50%
421842,ALLSTAR BUSINESS SOLUTIONS LTD,"6,877.84",Building Services,Plant & Vehicle Fuel,31-May-21,2122/03,SME,Y,50%
352641,STANNAH STAIRLIFTS LTD,776.64,Stairlifts,Plant Maintenance,01-Jun-21,2122/03,LGE,N,
352684,STANNAH STAIRLIFTS LTD,"3,096.81",Stairlifts,Plant Maintenance,01-Jun-21,2122/03,LGE,N,
352749,STANNAH STAIRLIFTS LTD,"3,111.00",Council House Adaptions,Repairs,09-Mar-21,2122/03,LGE,N,
421844,COMPUTERSHARE ,"1,181.00",Current Assets,ChildCare Vouchers-Control,28-May-21,2122/03,LGE,N,
421862,COMPUTERSHARE ,"1,181.00",Current Assets,ChildCare Vouchers-Control,28-Jun-21,2122/03,LGE,N,
352836,ASSOCIATION FOR SUFFOLK MUSEUMS,"1,500.00",Grants & Contrbns,Grants,10-Jun-21,2122/03,SME,N,
352838,DEBENHAM VILLAGE HALL & PLAYING FIELD TR,"12,500.00",Grants & Contrbns,Grants,10-Jun-21,2122/03,SME,N,
352840,EAST ANGLIAN TRADITIONAL MUSIC TRUST,"2,000.00",Grants & Contrbns,Grants,10-Jun-21,2122/03,SME,N,
353032,EAST ANGLIAN TRADITIONAL MUSIC TRUST,750,Suffolk Community Restart Fund,Contributions from other LAs,22-Jun-21,2122/03,SME,N,
352852,EASTERN ANGLES THEATRE CO LTD,"1,000.00",Grants & Contrbns,Grants,10-Jun-21,2122/03,SME,N,
352854,HOME -START MID SUFFOLK,"4,000.00",Grants & Contrbns,Grants,10-Jun-21,2122/03,SME,N,
352856,LIGHTHOUSE WOMENS AID LTD,"3,000.00",Grants & Contrbns,Grants,10-Jun-21,2122/03,SME,N,
352857,MID SUFFOLK AXIS,"1,800.00",Grants & Contrbns,Grants,10-Jun-21,2122/03,SME,N,
352858,MUSEUM OF EAST ANGLIAN LIFE,"10,000.00",Grants & Contrbns,Grants,10-Jun-21,2122/03,SME,N,
352860,STREET FORGE WORKSHOPS,"2,500.00",Grants & Contrbns,Grants,10-Jun-21,2122/03,SME,N,
352859,SUFFOLK ACCIDENT RESCUE SERVICE,"1,000.00",Grants & Contrbns,Grants,10-Jun-21,2122/03,SME,N,
352861,SUFFOLK ARTLINK,"2,550.00",Grants & Contrbns,Grants,10-Jun-21,2122/03,SME,N,
352837,SUFFOLK WEST CITIZENS ADVICE BUREAU,"5,460.00",Grants & Contrbns,Grants,10-Jun-21,2122/03,SME,N,
352863,WINGFIELD BARNS CIC,"3,712.12",Community Fund Projects-Grants,Grants,10-Jun-21,2122/03,SME,N,
352695,E.ON,482.94,Tenancy Services,Electricity,19-May-21,2122/03,LGE,N,
352395,SUFFOLK COUNTY COUNCIL,"26,206.00",Business Cont/Emergency Plan,Contributions & Donations,18-May-21,2122/03,LGE,N,
352769,SUFFOLK COUNTY COUNCIL,"31,744.96",Domestic Waste,MRF Disposal,04-Jun-21,2122/03,LGE,N,
352769,SUFFOLK COUNTY COUNCIL,"19,032.00",Garden Waste,Garden Waste Disposal,04-Jun-21,2122/03,LGE,N,
352872,SUFFOLK COUNTY COUNCIL,"4,073.57",Jnt Waste Contract,Subscriptions,10-Jun-21,2122/03,LGE,N,
353011,SUFFOLK COUNTY COUNCIL,793.75,Organisational Devt,Contracted Services,17-Jun-21,2122/03,LGE,Y,50%
352800,ROYAL MAIL,722.65,General Elections,Postage,28-May-21,2122/03,LGE,N,
353078,STOWMARKET COMMUNITY SPORTS & SOCIAL CLU,820,Grants & Contrbns,Contributions & Donations,22-Jun-21,2122/03,SME,N,
353126,TELEFONICA UK LIMITED - O2,"1,737.13",ICT,Telephone Costs,27-Jun-21,2122/03,LGE,Y,50%
351815,SUFFOLK ADVERTISING,"1,970.75",Organisational Devt,Advertising&mkting (non-staff),20-Apr-21,2122/03,LGE,Y,50%
421865,GAZPROM ENERGY,15.51,"11 Market Place, Stowmarket",Gas,24-Jun-21,2122/03,SME,N,
421865,GAZPROM ENERGY,181.32,Creeting Rd Depot,Gas,24-Jun-21,2122/03,SME,Y,50%
421865,GAZPROM ENERGY,19.82,General/Supervision & Mgmt,Gas,24-Jun-21,2122/03,SME,N,
421865,GAZPROM ENERGY,2.63,Headquarters General,Gas,24-Jun-21,2122/03,SME,N,
421865,GAZPROM ENERGY,"3,876.08",Leisure Contract,Gas,24-Jun-21,2122/03,SME,N,
421865,GAZPROM ENERGY,71.99,Pure Gym & Adjacent Building,Gas,24-Jun-21,2122/03,SME,N,
421865,GAZPROM ENERGY,"4,972.39",Sheltered Accommodation,Gas,24-Jun-21,2122/03,SME,N,
421865,GAZPROM ENERGY,393.83,Temporary Accommodation,Gas,24-Jun-21,2122/03,SME,N,
421865,GAZPROM ENERGY,"1,722.33",Tenancy Services,Gas,24-Jun-21,2122/03,SME,N,
352763,PREMIER BODYWORKS,720,Street & Major Road Cleansing,Plant & Vehicle - Other costs,07-Jun-21,2122/03,SME,N,
353098,PREMIER BODYWORKS,534.81,Street & Major Road Cleansing,Plant & Vehicle - Other costs,24-Jun-21,2122/03,SME,N,
352864,MID SUFFOLK CITIZENS ADVICE BUREAU,"23,875.00",Grants & Contrbns,Grants,10-Jun-21,2122/03,SME,N,
351775,ERNEST DOE & SONS LTD,"3,564.95",Open Spaces,"Equipment, Tools & Materials",16-Apr-21,2122/03,LGE,N,
353102,ERNEST DOE & SONS LTD,"4,586.62",Open Spaces,"Equipment, Tools & Materials",23-Apr-21,2122/03,LGE,N,
351804,WHYBROW PROPERTY SOLUTIONS LTD,"17,381.12",Building Services,Repairs,19-Apr-21,2122/03,SME,N,
352589,WHYBROW PROPERTY SOLUTIONS LTD,"2,562.00",Cedars Park,Fire Prevention,26-May-21,2122/03,SME,N,
352619,WHYBROW PROPERTY SOLUTIONS LTD,"4,854.10",Building Services,Repairs,12-May-21,2122/03,SME,N,
352844,WHYBROW PROPERTY SOLUTIONS LTD,"3,391.55",Building Services,Repairs,10-Jun-21,2122/03,SME,Y,50%
352952,WHYBROW PROPERTY SOLUTIONS LTD,825,Council House Adaptions,Improvements,15-Jun-21,2122/03,SME,N,
352740,L A C CLEANING CONTRACTORS LIMITED,806.41,Temporary Accommodation,General Cleaning,24-May-21,2122/03,SME,N,
352747,L A C CLEANING CONTRACTORS LIMITED,798.41,Temporary Accommodation,General Cleaning,26-Apr-21,2122/03,SME,N,
352932,L A C CLEANING CONTRACTORS LIMITED,395.5,Other HRA Temp Accommodation,"Equipment, Tools & Materials",15-Jun-21,2122/03,SME,N,
353082,L A C CLEANING CONTRACTORS LIMITED,798.41,Temporary Accommodation,General Cleaning,22-Jun-21,2122/03,SME,N,
352682,DMP TRAINING (UK),607,Organisational Devt,Health & Safety Training,22-May-21,2122/03,SME,Y,50%
352862,THE MIX STOWMARKET LTD,"7,500.00",Grants & Contrbns,Grants,11-Jun-21,2122/03,SME,N,
352866,COMMUNITY ACTION SUFFOLK,"10,000.00",Grants & Contrbns,Grants,10-Jun-21,2122/03,SME,N,
353033,OLD NEWTON VILLAGE HALL,619,Suffolk Community Restart Fund,Contributions from other LAs,22-Jun-21,2122/03,SME,N,
352767,ORSIS UK LTD,"4,947.60",PV Panels,Contracted Services,07-Jun-21,2122/03,SME,N,
352867,NEEDHAM MARKET COMMUNITY CENTRE,767.5,Community Fund Projects-Grants,Grants,10-Jun-21,2122/03,SME,N,
352874,NEEDHAM MARKET COMMUNITY CENTRE,767.5,Community Fund Projects-Grants,Grants,10-Jun-21,2122/03,SME,N,
353031,NEEDHAM MARKET COMMUNITY CENTRE,700.76,Community Fund Projects-Grants,Grants,22-Jun-21,2122/03,SME,N,
352594,OPUS PEOPLE SOLUTIONS LTD,"1,786.41",Current Liabilities,Agency Staff Holding A/C,27-May-21,2122/03,SME,N,
352790,OPUS PEOPLE SOLUTIONS LTD,"1,281.88",Current Liabilities,Agency Staff Holding A/C,03-Jun-21,2122/03,SME,N,
352870,OPUS PEOPLE SOLUTIONS LTD,"1,037.74",Current Liabilities,Agency Staff Holding A/C,10-Jun-21,2122/03,SME,N,
352981,OPUS PEOPLE SOLUTIONS LTD,"1,920.41",Current Liabilities,Agency Staff Holding A/C,17-Jun-21,2122/03,SME,N,
352806,CORNERSTONE BARRISTERS,"22,300.00",Devt Management - Apps,Legal Expenses,24-May-21,2122/03,SME,N,
352628,ELYSIAN ASSOCIATES,500,Financial Servs,Prof & Consultancy Fees,01-Jun-21,2122/03,SME,N,
352768,MATT ALLMAN LTD T/A MOVEITCLEARITFINDIT,"1,026.67",Homeless Prevention Fund,Contracted Services,07-Jun-21,2122/03,SME,N,
352984,MATT ALLMAN LTD T/A MOVEITCLEARITFINDIT,"2,075.00",Homelessness Private Sector,Removal Expenses,18-Jun-21,2122/03,SME,N,
353080,MATT ALLMAN LTD T/A MOVEITCLEARITFINDIT,"2,186.67",Homelessness Private Sector,Removal Expenses,23-Jun-21,2122/03,SME,N,
352504,BIRKETTS LLP,"2,227.00",Organisational Devt,Legal Expenses,28-Apr-21,2122/03,LGE,Y,50%
352746,BIRKETTS LLP,"2,919.00",Organisational Devt,Legal Expenses,26-May-21,2122/03,LGE,Y,50%
352826,BIRKETTS LLP,"1,252.00",Organisational Devt,Legal Expenses,09-Jun-21,2122/03,LGE,Y,50%
352326,GALLAGHER CAR & VAN RENTALS LTD,"1,100.00",Jnt Waste Contract,Refuse Contract,17-May-21,2122/03,LGE,N,
352970,GALLAGHER CAR & VAN RENTALS LTD,"1,100.00",Domestic Waste,Refuse Contract,14-Jun-21,2122/03,LGE,N,
352650,MENDLESHAM MEDICAL GROUP,"19,680.00",CIL,Grants,02-Jun-21,2122/03,SME,N,
352926,MENDLESHAM MEDICAL GROUP,"29,520.00",CIL,Grants,15-Jun-21,2122/03,SME,N,
352991,ADVANCE SUPPLIES,338.8,Business Cont/Emergency Plan,Cleaning Materials,18-Jun-21,2122/03,SME,Y,50%
421845,HM COURTS & TRIBUNALS SERVICE  (DD ONLY),355,Tenancy Services,Legal Expenses,02-Jun-21,2122/03,LGE,N,
421863,ABODE EAST ANGLIA LTD,650,Homeless Prevention Fund,Misc Supplies & Services Costs,25-Jun-21,2122/03,SME,N,
352938,CRAEMER UK LTD,"11,212.50",Bins,Bins,15-Jun-21,2122/03,SME,N,
352938,CRAEMER UK LTD,200,Jnt Waste Contract,"Equipment, Tools & Materials",15-Jun-21,2122/03,SME,N,
352939,CRAEMER UK LTD,"11,212.50",Bins,Bins,15-Jun-21,2122/03,SME,N,
352939,CRAEMER UK LTD,200,Jnt Waste Contract,"Equipment, Tools & Materials",15-Jun-21,2122/03,SME,N,
352571,PUBLIC SEWER SERVICES,389.29,Building Services,Repairs,25-May-21,2122/03,SME,N,
352869,PUBLIC SEWER SERVICES,350,Building Services,Repairs,28-May-21,2122/03,SME,N,
352617,CHARISMA SPATIAL PLANNING LTD T/A ANN SK,"5,298.15",Nghbrhd Plan Designations,Prof & Consultancy Fees,31-May-21,2122/03,SME,N,
352713,THE STOWMARKET GLASS COMPANY LTD,455.45,Building Services,Repairs,13-May-21,2122/03,SME,N,
352720,THE STOWMARKET GLASS COMPANY LTD,608.95,Building Services,Repairs,10-May-21,2122/03,SME,N,
421849,RIX PETROLEUM (EAST ANGLIA) LTD,986.93,Sheltered Accommodation,Heating Oil,07-Jun-21,2122/03,SME,N,
421849,RIX PETROLEUM (EAST ANGLIA) LTD,"12,135.39",Open Spaces,Plant & Vehicle Fuel,07-Jun-21,2122/03,SME,N,
421849,RIX PETROLEUM (EAST ANGLIA) LTD,"1,317.88",Tenancy Services,Heating Oil,07-Jun-21,2122/03,SME,N,
352519,NORTHUMBRIAN WATER LTD,28.9,Cedars Park,Legionella Testing,26-May-21,2122/03,LGE,N,
352519,NORTHUMBRIAN WATER LTD,28.9,Creeting Rd Depot,Legionella Testing,26-May-21,2122/03,LGE,Y,50%
352519,NORTHUMBRIAN WATER LTD,34.15,Headquarters General,Legionella Testing,26-May-21,2122/03,LGE,N,
352519,NORTHUMBRIAN WATER LTD,28.9,Leisure Contract,Legionella Testing,26-May-21,2122/03,LGE,N,
352519,NORTHUMBRIAN WATER LTD,183.9,Open Spaces,Legionella Testing,26-May-21,2122/03,LGE,N,
352519,NORTHUMBRIAN WATER LTD,34.15,Other HRA Temp Accommodation,Legionella Testing,26-May-21,2122/03,LGE,N,
352519,NORTHUMBRIAN WATER LTD,68.3,Public Conveniences,Legionella Testing,26-May-21,2122/03,LGE,N,
352519,NORTHUMBRIAN WATER LTD,470.25,Responsive maintenance,Legionella Testing,26-May-21,2122/03,LGE,N,
352519,NORTHUMBRIAN WATER LTD,438.7,Sheltered Accommodation,Legionella Testing,26-May-21,2122/03,LGE,N,
352519,NORTHUMBRIAN WATER LTD,34.15,Temporary Accommodation,Legionella Testing,26-May-21,2122/03,LGE,N,
352519,NORTHUMBRIAN WATER LTD,63.05,Wingfield Barns,Legionella Testing,26-May-21,2122/03,LGE,N,
353099,JOHN FORD GROUP LTD,"4,557.30",Mand Disabled Facilities Grant,Grants,24-Jun-21,2122/03,SME,N,
352853,HOME-START IN SUFFOLK,"9,000.00",Grants & Contrbns,Grants,10-Jun-21,2122/03,SME,N,
352651,ICENI,"3,300.17",Needham Market Middle School,Prof & Consultancy Fees,01-Jun-21,2122/03,SME,N,
352652,ICENI,"2,935.43","Green Road, Woolpit",Prof & Consultancy Fees,01-Jun-21,2122/03,SME,N,
352653,ICENI,"2,421.12",Eves Meadow Haughley S106,Prof & Consultancy Fees,01-Jun-21,2122/03,SME,N,
352654,ICENI,"1,857.90","Back Hills, Botesdale, S106",Prof & Consultancy Fees,01-Jun-21,2122/03,SME,N,
353208,PORTAL PLAN QUEST LTD,"1,614.00",Devt Management - Apps,Planning Fees,30-Jun-21,2122/03,SME,N,
352977,EUNOMIA RESEARCH & CONSULTING LTD,"17,500.00",Devt Management - Apps,Environmental  Consultancy,15-Jun-21,2122/03,SME,N,
352680,HAMSON BARRON SMITH LTD,"1,500.00",Pure Gym & Adjacent Building,Property Enhancements & Imps,31-May-21,2122/03,LGE,N,
352460,A C LEIGH (NORWICH) LTD,552.64,Building Services,"Equipment, Tools & Materials",20-May-21,2122/03,SME,N,
352603,A C LEIGH (NORWICH) LTD,380.78,Building Services,"Equipment, Tools & Materials",26-May-21,2122/03,SME,N,
352658,A C LEIGH (NORWICH) LTD,566.66,Building Services,"Equipment, Tools & Materials",27-May-21,2122/03,SME,N,
352892,A C LEIGH (NORWICH) LTD,288.16,Building Services,"Equipment, Tools & Materials",10-Jun-21,2122/03,SME,N,
352556,DAVID STAGG & ASSOCIATES LTD T/A DSA ELE,"4,114.26",Rewiring,Improvements,27-May-21,2122/03,SME,N,
352667,OAKPARK SECURITY SYSTEMS LTD,"9,577.25",Temporary Accommodation,Contracted Services,31-May-21,2122/03,LGE,N,
352890,SEED ENVIRONMENTAL LTD,"1,160.00",Structural Works,Prof & Consultancy Fees,25-May-21,2122/03,SME,N,
352948,HUGHES TRADE,"1,522.99",RoughSleepersInterventionYr3,Misc Supplies & Services Costs,16-Jun-21,2122/03,LGE,N,
352973,HUGHES TRADE,252.72,Temporary Accommodation,Furniture,17-Jun-21,2122/03,LGE,N,
352672,WASHCO LTD,467,Sheltered Accommodation,"Equipment, Tools & Materials",01-Jun-21,2122/03,SME,N,
352350,ANGLIA COMMERCIAL FLOORING LTD,347,Building Services,Repairs,17-May-21,2122/03,SME,N,
352353,ANGLIA COMMERCIAL FLOORING LTD,725.71,Building Services,Repairs,17-May-21,2122/03,SME,N,
352356,ANGLIA COMMERCIAL FLOORING LTD,590.32,Building Services,Repairs,17-May-21,2122/03,SME,N,
352358,ANGLIA COMMERCIAL FLOORING LTD,439.91,Building Services,Repairs,17-May-21,2122/03,SME,N,
352359,ANGLIA COMMERCIAL FLOORING LTD,491.94,Building Services,Repairs,17-May-21,2122/03,SME,N,
352360,ANGLIA COMMERCIAL FLOORING LTD,494.38,Building Services,Repairs,17-May-21,2122/03,SME,N,
352876,BURY ST EDMUNDS VETERINARY CENTRE,316.66,Animal Welfare Licensing,Prof & Consultancy Fees,13-May-21,2122/03,SME,N,
352792,PARKYNS LETTINGS BURY ST EDMUNDS,650,Guaranteed Rent Scheme,Rent Payable,08-Jun-21,2122/03,SME,N,
421854,PARKYNS LETTINGS BURY ST EDMUNDS,750,Guaranteed Rent Scheme,Misc Supplies & Services Costs,18-Jun-21,2122/03,SME,N,
352624,SUCHAS ACCOMMODATION SERVICES,700,Homeless Prevention Fund,Misc Supplies & Services Costs,01-Jun-21,2122/03,ST,N,
352445,MID SUFFOLK GROWTH LTD,"63,326.26",Needham HQ S106 Units,Purchase of Land & Buildings,22-May-21,2122/03,SME,N,
353037,SPRYTAR LTD,"3,000.00",RHSSF,Advertising&mkting (non-staff),22-Jun-21,2122/03,SME,N,
352821,ELLISONS SOLICITORS,"20,000.00","Cedars Park C & D, Stowmarket",Prof & Consultancy Fees,23-Dec-20,2122/03,SME,N,
352936,GREGG BROWN PHOTOGRAPHY,285,RHSSF,Advertising&mkting (non-staff),15-Jun-21,2122/03,ST,N,
421855,LIMELEASE LTD,395,Guaranteed Rent Scheme,Rent Payable,18-Jun-21,2122/03,SME,N,
352544,PAKFLATT (UK) LTD,"1,322.00",General Elections,"Equipment, Tools & Materials",28-Apr-21,2122/03,SME,Y,40%
352620,BUCHER MUNICIPAL LTD,"132,757.00",Vehicle and Plant Renewals,Plant & Vehicle - Purchase,28-May-21,2122/03,LGE,N,
352643,GIPPING CONSTRUCTION LTD,"20,388.75",Regen Fund - HQ Sites,Prof & Consultancy Fees,27-May-21,2122/03,SME,N,
352643,GIPPING CONSTRUCTION LTD,"266,925.25",Needham Market Middle School,Prof & Consultancy Fees,27-May-21,2122/03,SME,N,
352929,PRIVATE LANDLORD,786.5,Rent Deposit Scheme,Rent Payable,16-Jun-21,2122/03,ST,N,
352753,AFFINITY HEALTH AT WORK LTD,"5,300.00",Organisational Devt,Corporate Training,28-May-21,2122/03,SME,Y,50%
352743,MRS SHELLEY SPALL T/A CLEANING COVERED,448,Business Cont/Emergency Plan,General Cleaning,01-Jun-21,2122/03,SME,N,
352744,MRS SHELLEY SPALL T/A CLEANING COVERED,448,Business Cont/Emergency Plan,General Cleaning,04-Jun-21,2122/03,SME,N,
352906,MRS SHELLEY SPALL T/A CLEANING COVERED,896,Business Cont/Emergency Plan,General Cleaning,13-Jun-21,2122/03,SME,N,
352755,DUNMOW SKIPS LTD T/A DUNMOW GROUP,650,Trade Waste,Trade Waste Disposal,15-May-21,2122/03,LGE,Y,50%
352791,PRIVATE LANDLORD,786.5,Guaranteed Rent Scheme,Rent Payable,09-Jun-21,2122/03,ST,N,
352930,COUNTRYSTYLE RECYCLING LTD,362,Trade Waste,Trade Waste Disposal,31-May-21,2122/03,SME,Y,50%
352946,COUNTRYSTYLE RECYCLING LTD,"1,906.49",Bring Sites,Contracted Services,31-May-21,2122/03,SME,N,
352928,TEMPLE LETTINGS,650,Guaranteed Rent Scheme,Rent Payable,16-Jun-21,2122/03,SME,N,
352616,DGL QUALITY MANAGEMENT LTD,870.76,Needham Market Middle School,Prof & Consultancy Fees,31-May-21,2122/03,SME,N,
352457,RSK LAND & DEVELOPMENT ENGINEERING LTD,"4,375.00",Strategic Assets,Prof & Consultancy Fees,20-May-21,2122/03,LGE,N,
352757,RSK LAND & DEVELOPMENT ENGINEERING LTD,"4,320.00",Strategic Assets,Prof & Consultancy Fees,27-May-21,2122/03,LGE,N,
352758,RSK LAND & DEVELOPMENT ENGINEERING LTD,"1,950.00",Strategic Assets,Prof & Consultancy Fees,28-May-21,2122/03,LGE,N,
352911,HM REVENUES & CUSTOMS (CIS TAX),725.33,Current Liabilities,Bank Payments,15-Jun-21,2122/03,LGE,N,
352974,CATCH22,"12,443.00",Management Team,Prof & Consultancy Fees,17-Jun-21,2122/03,LGE,Y,50%
421850,EDEN ROSE DEVELOPMENTS LTD,900,Rent Deposit Scheme,Misc Premises Costs,07-Jun-21,2122/03,SME,N,
421860,TOMMYS,293.5,Bring Sites,Contributions & Donations,24-Jun-21,2122/03,SME,N,
353017,RENTS PROPERTY MANAGEMENT SERVICES,581,Rent Deposit Scheme,Misc Premises Costs,21-Jun-21,2122/03,SME,N,
841,LOCAL GOVERNMENT ASSOCIATION,-200,Management Team,Conference Expenses,10-Jun-21,2122/03,LGE,Y,50%
841,LOCAL GOVERNMENT ASSOCIATION,-400,Cost of Democracy,Conference Expenses,10-Jun-21,2122/03,LGE,N,
353103,ERNEST DOE & SONS LTD,"-3,564.95",Open Spaces,"Equipment, Tools & Materials",23-Apr-21,2122/03,LGE,N,
188,ARMSTRONG YORK ASBESTOS ENVIRONMENTAL,92.34,Asbestos Survey & Reinspection,Prof & Consultancy Fees,18-Jun-21,2122/03,SME,N,
352954,ARMSTRONG YORK ASBESTOS ENVIRONMENTAL,-92.34,Asbestos Survey & Reinspection,Prof & Consultancy Fees,16-Jun-21,2122/03,SME,N,
352488,VERTAS GROUP LTD,"-5,042.00",Endeavour House - HQ,Operating Lease Payments,27-Apr-21,2122/03,SME,Y,50%
352953,CRAEMER UK LTD,-400,Jnt Waste Contract,"Equipment, Tools & Materials",17-Jun-21,2122/03,SME,N,
352775,A C LEIGH (NORWICH) LTD,-157.6,Building Services,"Equipment, Tools & Materials",26-May-21,2122/03,SME,N,
352955,EDMUNDSON ELECTRICAL LTD (IPSWICH),-81.89,Building Services,"Equipment, Tools & Materials",06-May-21,2122/03,LGE,N,
352927,QUADIENT UK LIMITED,-105.11,Jnt Waste Contract,"Equipment, Tools & Materials",09-Jun-21,2122/03,LGE,N,
352756,DUNMOW SKIPS LTD T/A DUNMOW GROUP,-130,Trade Waste,Trade Waste Disposal,04-Jun-21,2122/03,LGE,Y,50%
